{"text_format":"1","workbook":"xlsx","n_sheets":28,"sheets":["Startseite","data","Gesuch 1","Gesuch 2","Passage UG - Annexe","Fusion - Annexe","Optimisation - Annexe","Optimisation - Décompte","Amélioration - Annexe","Amélioration - Décompte","Accueil - Annexe","Soins UG - Annexe","Soins - Annexe","Soins - Décompte","Plantation EI - Annexe","Plantation EI - Décompte","Plantation - Annexe","Plantation - Décompte","Régénération - Annexe","Régénération - Décompte","Régénération CC - Annexe","Régénération CC - Décompte","Exploitation - Annexe","Exploitation - Décompte","Surveillance - Annexe","Surveillance - Décompte","Pièges - Annexe","Pièges - Décompte"],"not_rendered":{"charts":0,"images":2,"macros":1,"external_links":0,"defined_names":2,"comments":2,"pivot_tables":0},"unopened":[],"bounds":{"document_bytes":16777216,"sheet_cells":100000,"rows_first":2000,"rows_last":500,"rows_between":2000,"halvings":0,"cell_chars":16384,"cell_head_chars":4096},"cells_cut":0,"cells_raw":0,"read":"whole","date_system":"1900"}

{"sheet":"Startseite","index":0,"n_rows":7,"n_cols":4,"rows_kept":7,"cut":false,"hidden":false,"merged":[[2,1,2,6],[5,3,5,5],[5,1,5,2]]}
[]
[]
[null,"Subventionsgesuch - Wald"]
[]
[]
[null,"Auswahl des Gesuchs",null,"GF-U : Betriebseinheit, die zur gemeinsamen Bewirtschaftung wechselt"]
[null,null,"Version","V.1400.2026.1"]

{"sheet":"data","index":1,"n_rows":15,"n_cols":13,"rows_kept":15,"cut":false,"hidden":true,"merged":[]}
["Intitulé du contrat","Motif","Intitulé liste","Taille du titre","Signataire 1","Engagement Signataire 1","Signataire 2","Engagement Signataire 2","Bases légales","Texte Subvention","Distribution","Onglets associés","Cellule subvention totale"]
["Borkenkäferfallen","FP-D",{"$f":"_xlfn.CONCAT(Table1[[#This Row],[Motif]], \" : \", Table1[[#This Row],[Intitulé du contrat]])","v":"FP-D : Borkenkäferfallen"},14,"Der Staat Freiburg, vertreten durch die Direktion der Institutionen und der Land- und Forstwirtschaft (ILFD)","der sich verpflichtet, dem Bewirtschaftungseinheit eine Subvention in Form eines Pauschalbetrags zu zahlen","der Eigentümer ","der sich verpflichtet, die Arbeiten wirtschaftlich, termin- und fachgerecht und gemäss den gesetzlichen, beruflichen und fachlichen Bestimmungen auszuführen.","Gesetz vom 2. März 1999 über den Wald und den Schutz vor Naturereignissen, Art. 64c ; Weisung des WNA \"Waldschutz\"","Eine Subvention wird gemäss der Programmvereinbarung zwischen dem Kanton und dem Bund gewährt.","Das Kreisforstamt behält das Original und schickt dem Eigentümer eine Kopie.","Gesuch 1, Pièges - Annexe, Pièges - Décompte","'Pièges - Annexe'!H16"]
["Intensive Überwachung","FP-D",{"$f":"_xlfn.CONCAT(Table1[[#This Row],[Motif]], \" : \", Table1[[#This Row],[Intitulé du contrat]])","v":"FP-D : Intensive Überwachung"},14,"Der Staat Freiburg, vertreten durch die Direktion der Institutionen und der Land- und Forstwirtschaft (ILFD)","der sich verpflichtet, dem Bewirtschaftungseinheit eine Subvention in Form eines Pauschalbetrags zu zahlen","der Eigentümer ","der sich verpflichtet, die Arbeiten wirtschaftlich, termin- und fachgerecht und gemäss den gesetzlichen, beruflichen und fachlichen Bestimmungen auszuführen.","Gesetz vom 2. März 1999 über den Wald und den Schutz vor Naturereignissen, Art. 64c ; Weisung des WNA \"Waldschutz\"","Eine Subvention wird gemäss der Programmvereinbarung zwischen dem Kanton und dem Bund gewährt.","Das Kreisforstamt behält das Original und schickt dem Eigentümer eine Kopie.","Gesuch 1, Surveillance - Annexe, Surveillance - Décompte","'Surveillance - Annexe'!H12"]
["Nutzung von Schadholz","FP-D",{"$f":"_xlfn.CONCAT(Table1[[#This Row],[Motif]], \" : \", Table1[[#This Row],[Intitulé du contrat]])","v":"FP-D : Nutzung von Schadholz"},14,"Der Staat Freiburg, vertreten durch die Direktion der Institutionen und der Land- und Forstwirtschaft (ILFD)","der sich verpflichtet, dem Bewirtschaftungseinheit eine Subvention in Form eines Pauschalbetrags zu zahlen","der Eigentümer ","der sich verpflichtet, die Arbeiten wirtschaftlich, termin- und fachgerecht und gemäss den gesetzlichen, beruflichen und fachlichen Bestimmungen auszuführen.","Gesetz vom 2. März 1999 über den Wald und den Schutz vor Naturereignissen, Art. 64c ; Weisung des WNA \"Waldschutz\"","Eine Subvention wird gemäss der Programmvereinbarung zwischen dem Kanton und dem Bund unter Einbeziehung eines Bundesanteils gewährt.","Das Kreisforstamt behält das Original und schickt dem Eigentümer eine Kopie.","Gesuch 1, Exploitation - Annexe, Exploitation - Décompte","'Exploitation - Annexe'!K22"]
["Schlag zur Regeneration von Beständen, die dem Klimawandel nicht angepasst sind","FP-D",{"$f":"_xlfn.CONCAT(Table1[[#This Row],[Motif]], \" : \", Table1[[#This Row],[Intitulé du contrat]])","v":"FP-D : Schlag zur Regeneration von Beständen, die dem Klimawandel nicht angepasst sind"},13,"Der Staat Freiburg, vertreten durch die Direktion der Institutionen und der Land- und Forstwirtschaft (ILFD)","der sich verpflichtet, dem Bewirtschaftungseinheit eine Subvention in Form eines Pauschalbetrags zu zahlen","der Eigentümer ","der sich verpflichtet, die Arbeiten wirtschaftlich, termin- und fachgerecht und gemäss den gesetzlichen, beruflichen und fachlichen Bestimmungen auszuführen.","Gesetz vom 2. März 1999 über den Wald und den Schutz vor Naturereignissen, Art. 64c ; Weisung des WNA \"Waldschutz\"","Eine Subvention wird gemäss der Programmvereinbarung zwischen dem Kanton und dem Bund unter Einbeziehung eines Bundesanteils gewährt.","Das Kreisforstamt behält das Original und schickt dem Eigentümer eine Kopie.","Gesuch 1, Régénération CC - Annexe, Régénération CC - Décompte","'Régénération CC - Annexe'!K16"]
["Defizitären Verjüngungsschlag im Wald","PC-a",{"$f":"_xlfn.CONCAT(Table1[[#This Row],[Motif]], \" : \", Table1[[#This Row],[Intitulé du contrat]])","v":"PC-a : Defizitären Verjüngungsschlag im Wald"},14,"Der Staat Freiburg, vertreten durch die Direktion der Institutionen und der Land- und Forstwirtschaft (ILFD)","der sich verpflichtet, dem Bewirtschaftungseinheit eine Subvention in Form eines Pauschalbetrags zu zahlen","der Trägerschaft","die das schriftliche Einverständnis der vom Holzschlag betroffenen Eigentümer erhalten hat und sich verpflichtet, die Arbeiten wirtschaftlich, termin- und fachgerecht, gemäss dem Projekt, der gesetzlichen Bestimmungen und der Sicherheitsvorschriften auszuführen. Die Trägerschaft ist dafür verantwortlich, die Holzernte- und Motorsägearbeiten nur von Personal ausführen zu lassen, dass gemäss den gesetzlichen Anforderungen genügend ausgebildet ist (Grundausbildung obligatorisch).","Gesetz vom 2. März 1999 über den Wald und den Schutz vor Naturereignissen, Art. 64 Bst. a ; Weisung des WNA \"Verjüngung des Waldes\"","Eine subvention wird vom Kanton gewährt.","Das Kreisforstamt behält das Original und schickt dem Eigentümer eine Kopie.","Gesuch 1, Régénération - Annexe, Régénération - Décompte","'Régénération - Annexe'!K33"]
["Anreicherungs- oder Ergänzungspflanzung","PC-a",{"$f":"_xlfn.CONCAT(Table1[[#This Row],[Motif]], \" : \", Table1[[#This Row],[Intitulé du contrat]])","v":"PC-a : Anreicherungs- oder Ergänzungspflanzung"},14,"Der Staat Freiburg, vertreten durch die Direktion der Institutionen und der Land- und Forstwirtschaft (ILFD)","der sich verpflichtet, dem Bewirtschaftungseinheit eine Subvention in Form eines Pauschalbetrags zu zahlen","der Trägerschaft","die das schriftliche Einverständnis der von der Pflanzung betroffenen Eigentümer erhalten hat und sich verpflichtet, die Arbeiten wirtschaftlich, termin- und fachgerecht, gemäss dem Projekt, der gesetzlichen Bestimmungen, sowie den anerkannten Regeln der Technik, und der Sicherheitsvorschriften auszuführen.","Gesetz vom 2. März 1999 über den Wald und den Schutz vor Naturereignissen, Art. 64 Bst. a ; Weisung des WNA \"Verjüngung des Waldes\"","Eine subvention wird vom Kanton gewährt.","Das Kreisforstamt behält das Original und schickt dem Eigentümer eine Kopie.","Gesuch 1, Plantation - Annexe, Plantation - Décompte","'Plantation - Annexe'!Q12"]
["Pflanzung von einheimischen Arten und Pflanzung von einheimischen Arten mit exotischen Arten","GF-S",{"$f":"_xlfn.CONCAT(Table1[[#This Row],[Motif]], \" : \", Table1[[#This Row],[Intitulé du contrat]])","v":"GF-S : Pflanzung von einheimischen Arten und Pflanzung von einheimischen Arten mit exotischen Arten"},11,"Der Staat Freiburg, vertreten durch die Direktion der Institutionen und der Land- und Forstwirtschaft (ILFD)","der sich verpflichtet, dem Bewirtschaftungseinheit eine Subvention in Form eines Pauschalbetrags zu zahlen","der Eigentümer ","der sich verpflichtet, die Arbeiten wirtschaftlich, termin- und fachgerecht und gemäss den gesetzlichen, beruflichen und fachlichen Bestimmungen auszuführen.","Gesetz vom 2. März 1999 über den Wald und den Schutz vor Naturereignissen, Art. 64e ; Weisung 1401.1 des WNA","Eine Subvention wird gemäss der Programmvereinbarung zwischen dem Kanton und dem Bund unter Einbeziehung eines Bundesanteils gewährt.","Das Kreisforstamt behält das Original und schickt dem Eigentümer eine Kopie.","Gesuch 1, Plantation EI - Annexe, Plantation EI - Décompte","'Plantation EI - Annexe'!Q12"]
["Jungwaldpflege","GF-S / FP-J",{"$f":"_xlfn.CONCAT(Table1[[#This Row],[Motif]], \" : \", Table1[[#This Row],[Intitulé du contrat]])","v":"GF-S / FP-J : Jungwaldpflege"},14,"Der Staat Freiburg, vertreten durch die Direktion der Institutionen und der Land- und Forstwirtschaft (ILFD)","der sich verpflichtet, dem Bewirtschaftungseinheit eine Subvention in Form eines Pauschalbetrags zu zahlen","der Eigentümer ","der sich verpflichtet, die Arbeiten wirtschaftlich, termin- und fachgerecht und gemäss den gesetzlichen, beruflichen und fachlichen Bestimmungen auszuführen.","Gesetz vom 2. März 1999 über den Wald und den Schutz vor Naturereignissen, Art. 64e, 64c; Weisung 1401.1 des WNA","Eine Subvention wird gemäss der Programmvereinbarung zwischen dem Kanton und dem Bund unter Einbeziehung eines Bundesanteils gewährt.","Das Kreisforstamt behält das Original und schickt dem Eigentümer eine Kopie.","Gesuch 1, Soins - Annexe, Soins - Décompte","'Soins - Annexe'!P13"]
["Jungwaldpflege (Bewirtschaftungseinheit)","GF-S",{"$f":"_xlfn.CONCAT(Table1[[#This Row],[Motif]], \" : \", Table1[[#This Row],[Intitulé du contrat]])","v":"GF-S : Jungwaldpflege (Bewirtschaftungseinheit)"},14,"Der Staat Freiburg, vertreten durch die Direktion der Institutionen und der Land- und Forstwirtschaft (ILFD)","der sich verpflichtet, dem Bewirtschaftungseinheit eine Subvention in Form eines Pauschalbetrags zu zahlen","die Bewirtschaftungseinheit","der sich verpflichtet, die Arbeiten wirtschaftlich, termingerecht und in Übereinstimmung mit den gesetzlichen und beruflichen Bestimmungen sowie den anerkannten Regeln der Technik auszuführen.","Gesetz vom 2. März 1999 über den Wald und den Schutz vor Naturereignissen, Art. 64e, 64c; Weisung 1401.1 des WNA","Eine Subvention wird gemäss der Programmvereinbarung zwischen dem Kanton und dem Bund unter Einbeziehung eines Bundesanteils gewährt.","WNA behält das Original und sendet eine Kopie an den Forstkreis für ihn und den Eigentümer","Gesuch 2, Soins UG - Annexe","'Soins UG - Annexe'!Q32"]
["Freizeit und Erholung im Wald","PC-b",{"$f":"_xlfn.CONCAT(Table1[[#This Row],[Motif]], \" : \", Table1[[#This Row],[Intitulé du contrat]])","v":"PC-b : Freizeit und Erholung im Wald"},14,"Der Staat Freiburg, vertreten durch die Direktion der Institutionen und der Land- und Forstwirtschaft (ILFD)","der sich verpflichtet, dem Bewirtschaftungseinheit eine Subvention in Form eines Pauschalbetrags zu zahlen","die Bewirtschaftungseinheit","der sich verpflichtet, die Ziele vollständig zu erreichen und die Leistungen zugunsten der Erholung der Öffentlichkeit im Wald zu erbringen. Er verpflichtet sich, die Arbeiten innerhalb der festgelegten Fristen wirtschaftlich und gemäss den gesetzlichen und berufsständischen Bestimmungen sowie den Regeln der Kunst durchzuführen und einen Jahresbericht nach dem vom Staat bereitgestellten Muster zu liefern.","Gesetz vom 2. März 1999 über den Wald und den Schutz vor natürlichen Gefahren, Art. 64 Bst. b ; Weisung Freizeit und Erholung im Wald des WNA","Eine subvention wird vom Kanton gewährt.","WNA behält das Original und sendet eine Kopie an den Forstkreis für ihn und die Bewirtschaftungseinheit","Gesuch 2, Accueil - Annexe","'Accueil - Annexe'!F58"]
["Massnahmen zur Verbesserung der Bewirtschaftungsbedingungen","PC-e",{"$f":"_xlfn.CONCAT(Table1[[#This Row],[Motif]], \" : \", Table1[[#This Row],[Intitulé du contrat]])","v":"PC-e : Massnahmen zur Verbesserung der Bewirtschaftungsbedingungen"},14,"Der Staat Freiburg, vertreten durch die Direktion der Institutionen und der Land- und Forstwirtschaft (ILFD)","welche sich zur Auszahlung einer Subvention an die Trägerschaft verpflichtet,  in Form einer Beteiligung an den tatsächlichen Kosten.","der Trägerschaft","der sich verpflichtet, die Arbeiten wirtschaftlich, termin- und fachgerecht und gemäss den gesetzlichen, beruflichen und fachlichen Bestimmungen auszuführen.","Gesetz vom 2. März 1999 über den Wald und den Schutz vor natürlichen Gefahren, Art. 64 Bst. e","Eine subvention wird vom Kanton gewährt.","WNA behält das Original und sendet eine Kopie an den Forstkreis für ihn und die Bewirtschaftungseinheit","Gesuch 2, Amélioration - Annexe, Amélioration - Décompte","'Amélioration - Annexe'!I31"]
["Optimierung der Strukturen und Prozesse zur Verwaltung des Waldbesitzes","GF-O",{"$f":"_xlfn.CONCAT(Table1[[#This Row],[Motif]], \" : \", Table1[[#This Row],[Intitulé du contrat]])","v":"GF-O : Optimierung der Strukturen und Prozesse zur Verwaltung des Waldbesitzes"},11,"Der Staat Freiburg, vertreten durch die Direktion der Institutionen und der Land- und Forstwirtschaft (ILFD)","welche sich zur Auszahlung einer Subvention an die Trägerschaft verpflichtet,  in Form einer Beteiligung an den tatsächlichen Kosten.","der Trägerschaft","der sich verpflichtet, die Arbeiten wirtschaftlich, termingerecht und in Übereinstimmung mit den gesetzlichen und beruflichen Bestimmungen sowie den anerkannten Regeln der Technik auszuführen.","Gesetz vom 2. März 1999 über den Wald und den Schutz vor natürlichen Gefahren, Art. 64 Bst. e","Eine Subvention wird gemäss der Programmvereinbarung zwischen dem Kanton und dem Bund unter Einbeziehung eines Bundesanteils gewährt.","WNA behält das Original und sendet eine Kopie an den Forstkreis für ihn und die Bewirtschaftungseinheit","Gesuch 2, Optimisation - Annexe, Optimisation - Décompte","'Optimisation - Annexe'!R33"]
["Fusion von Betriebseinheiten","GF-U",{"$f":"_xlfn.CONCAT(Table1[[#This Row],[Motif]], \" : \", Table1[[#This Row],[Intitulé du contrat]])","v":"GF-U : Fusion von Betriebseinheiten"},14,"Der Staat Freiburg, vertreten durch die Direktion der Institutionen und der Land- und Forstwirtschaft (ILFD)","der sich verpflichtet, dem Bewirtschaftungseinheit eine Subvention in Form eines Pauschalbetrags zu zahlen","die Bewirtschaftungseinheit","der sich verpflichtet, die Wälder ihrer Mitglieder zu bewirtschaften, die Rechte und Befugnisse für Planung und Nutzung zu zentralisieren, eine zentrale Buchhaltung zu führen, die geplante Holzmenge zu nutzen und über ein Kernforstteam zu verfügen.","Gesetz vom 2. März 1999 über den Wald und den Schutz vor natürlichen Gefahren, Art. 64e ; Programmvereinbarungen im Umweltbereich, OFEV ","Eine Subvention wird gemäss der Programmvereinbarung zwischen dem Kanton und dem Bund unter Einbeziehung eines Bundesanteils gewährt.","WNA behält das Original und sendet eine Kopie an den Forstkreis für ihn und die Bewirtschaftungseinheit","Gesuch 2, Fusion - Annexe","'Fusion - Annexe'!K26"]
["Betriebseinheit, die zur gemeinsamen Bewirtschaftung wechselt","GF-U",{"$f":"_xlfn.CONCAT(Table1[[#This Row],[Motif]], \" : \", Table1[[#This Row],[Intitulé du contrat]])","v":"GF-U : Betriebseinheit, die zur gemeinsamen Bewirtschaftung wechselt"},14,"Der Staat Freiburg, vertreten durch die Direktion der Institutionen und der Land- und Forstwirtschaft (ILFD)","der sich verpflichtet, dem Bewirtschaftungseinheit eine Subvention in Form eines Pauschalbetrags zu zahlen","die Bewirtschaftungseinheit","der sich verpflichtet, die Wälder ihrer Mitglieder zu bewirtschaften, die Rechte und Befugnisse für Planung und Nutzung zu zentralisieren, eine zentrale Buchhaltung zu führen, die geplante Holzmenge zu nutzen und über ein Kernforstteam zu verfügen.","Gesetz vom 2. März 1999 über den Wald und den Schutz vor natürlichen Gefahren, Art. 64e ; Programmvereinbarungen im Umweltbereich, OFEV ","Eine Subvention wird gemäss der Programmvereinbarung zwischen dem Kanton und dem Bund unter Einbeziehung eines Bundesanteils gewährt.","WNA behält das Original und sendet eine Kopie an den Forstkreis für ihn und die Bewirtschaftungseinheit","Gesuch 2, Passage UG - Annexe","'Passage UG - Annexe'!E24"]

{"sheet":"Gesuch 1","index":2,"n_rows":41,"n_cols":13,"rows_kept":41,"cut":false,"hidden":true,"merged":[[31,0,31,18],[39,0,39,18],[41,0,41,18],[37,1,37,18],[40,0,40,18],[0,0,0,18],[1,0,1,18],[14,0,14,4],[15,0,15,4],[9,13,9,18],[10,13,10,18],[11,13,11,18],[9,0,9,2],[10,10,10,12],[11,10,11,12],[8,0,8,18],[13,5,13,11],[13,12,13,18],[14,5,14,11],[14,12,14,18],[15,12,15,18],[3,0,3,18],[10,0,10,2],[9,3,9,8],[10,3,10,8],[2,0,2,18],[28,0,28,3],[9,10,9,12],[5,0,5,18],[6,0,6,18],[13,0,13,4],[16,0,16,4],[16,5,16,11],[15,5,15,11],[16,12,16,18],[25,10,25,17],[20,0,20,4],[23,0,23,18],[25,0,25,8],[21,0,21,18],[20,5,20,11],[33,10,35,17],[35,1,35,8],[34,1,34,8],[33,1,33,8],[17,0,17,4],[18,5,18,11],[18,12,18,18],[17,5,17,11],[17,12,17,18],[20,12,20,18],[19,0,19,4],[18,0,18,4],[28,4,28,6],[28,10,28,17],[19,5,19,11],[19,12,19,18]]}
[]
["Gesuch zur Gewährung einer Subvention zwischen"]
[]
[]
[]
["Gesetzliche Grundlagen und Referenzen:"]
[]
[]
["LOKALISIERUNG UND REFERENZEN"]
["Projektname",null,null,null,null,null,null,null,null,null,"Forstkreis n°"]
["Projektnr.",null,null,null,null,null,null,null,null,null,"Forstrevier n°"]
[null,null,null,null,null,null,null,null,null,null,"Lokalname"]
[]
[null,null,null,null,null,{"$f":" IF(ISBLANK(K3), \"\", K3)","v":""},null,null,null,null,null,null,"*Falls Abtretung der Subvention, zugunsten von:"]
["Name / Firma / Gemeinde"]
["Business partner - N°SAP"]
["Adresse"]
["PLZ, Ort"]
["Telefonnummer"]
["e-mail Adresse"]
["IBAN"]
[{"$f":"\"*Abtretung der Subvention. Mit dieser Erklärung gibt \" & LOWER(F14) & \" ihr Einverständnis zur Auszahlung der für diese Arbeiten geschuldeten Subventionen an den oben genannten Begünstigten.\"","v":"*Abtretung der Subvention. Mit dieser Erklärung gibt  ihr Einverständnis zur Auszahlung der für diese Arbeiten geschuldeten Subventionen an den oben genannten Begünstigten."}]
[]
["SUBVENTION"]
[]
["Gewährung von Subventionen, Konsequenzen für die MWST\nDie Subvention ist als steuerfreier Geldfluss zu betrachten. Dies könnte Auswirkungen auf die Möglichkeiten des Vorsteuerabzugs haben, wenn ein Mehrwertsteuerpflichtiger eine solche Beihilfe erhält. Wir empfehlen dem Begünstigten, Vorkehrungen zu treffen, um dies zu berücksichtigen.",null,null,null,null,null,null,null,null,null,"Bedingungen für die Auszahlung der Subvention\nDie Auszahlung der Subvention erfolgt im Rahmen der verfügbaren Kredite, gegen Vorlage der Unterlagen und Abrechnungen gemäss den Richtlinien des WNA und vorbehaltlich der Einhaltung allfälliger Bedingungen im Zusammenhang mit der Gewährung der Subventionsgesuch."]
[]
[null,null,null,null,null,null,null,null,null,null,"Termin für die Abgabe der Schlussabrechnung:"]
["Gesamt Subventionsgesuch:",null,null,null,null,null,null,"Fr."]
[]
[]
["UNTERSCHRIFT"]
[]
[null,{"$f":" IF(ISNONTEXT(K3), \"\", K3)","v":""},null,null,null,null,null,null,null,null,"Ort, Datum, Unterschrift"]
[]
[]
[]
[null,"Der Eigentümer wurde von .............................................................  am ...............................................................\nkontaktiert und hat mündlich sein Einverständnis zur Durchführung der Arbeiten gegeben."]
[]
["WEITERE AUFLAGEN UND BEDINGUNGEN:"]
["Der entsprechende Anhang ist Bestandteil dieses Gesuchs (Zeitplan, geplante Massnahmen, Verfahren usw.)."]

{"sheet":"Gesuch 2","index":3,"n_rows":41,"n_cols":11,"rows_kept":41,"cut":false,"hidden":true,"merged":[[39,0,39,18],[41,0,41,18],[31,0,31,18],[37,1,37,18],[40,0,40,18],[35,1,35,8],[34,1,34,8],[33,1,33,8],[21,0,21,18],[23,0,23,18],[25,0,25,8],[28,4,28,6],[28,10,28,17],[25,10,25,18],[28,0,28,3],[19,0,19,4],[20,5,20,18],[19,5,19,18],[17,0,17,4],[18,0,18,4],[17,5,17,18],[20,0,20,4],[15,0,15,4],[16,0,16,4],[16,5,16,18],[15,5,15,18],[18,5,18,18],[10,10,10,12],[10,13,10,18],[11,10,11,12],[11,13,11,18],[13,5,13,18],[10,3,10,8],[1,0,1,18],[2,0,2,18],[3,0,3,18],[33,10,35,17],[0,0,0,18],[5,0,5,18],[6,0,6,18],[8,0,8,18],[9,0,9,2],[9,3,9,8],[9,10,9,12],[9,13,9,18],[13,0,13,4],[14,0,14,4],[14,5,14,18],[10,0,10,2]]}
[]
["Gesuch zur Gewährung einer Subvention zwischen"]
[]
[]
[]
["Gesetzliche Grundlagen und Referenzen:"]
[]
[]
["LOKALISIERUNG UND REFERENZEN"]
["Projektname",null,null,null,null,null,null,null,null,null,"Forstkreis n°"]
["Projektnr.",null,null,null,null,null,null,null,null,null,"Forstrevier n°"]
[null,null,null,null,null,null,null,null,null,null,"Lokalname"]
[]
[null,null,null,null,null,{"$f":" IF(ISBLANK(K3), \"\", K3)","v":""}]
["Name / Firma / Gemeinde"]
["Business partner SAP"]
["Adresse"]
["PLZ, Ort"]
["Telefonnummer"]
["e-mail Adresse"]
["IBAN"]
[]
[]
["SUBVENTION"]
[]
["Gewährung von Subventionen, Konsequenzen für die MWST\nDie Subvention ist als steuerfreier Geldfluss zu betrachten. Dies könnte Auswirkungen auf die Möglichkeiten des Vorsteuerabzugs haben, wenn ein Mehrwertsteuerpflichtiger eine solche Beihilfe erhält. Wir empfehlen dem Begünstigten, Vorkehrungen zu treffen, um dies zu berücksichtigen.",null,null,null,null,null,null,null,null,null,"Bedingungen für die Auszahlung der Subvention\nDie Auszahlung der Subvention erfolgt im Rahmen der verfügbaren Kredite, gegen Vorlage der Unterlagen und Abrechnungen gemäss den Richtlinien des WNA und vorbehaltlich der Einhaltung allfälliger Bedingungen im Zusammenhang mit der Gewährung der Subventionsgesuch."]
[]
[null,null,null,null,null,null,null,null,null,null,"Termin für die Abgabe der Schlussabrechnung:"]
["Gesamt Subventionsgesuch:",null,null,null,null,null,null,"Fr."]
[]
[]
["UNTERSCHRIFT"]
[]
[null,{"$f":" IF(ISNONTEXT(K3), \"\", K3)","v":""},null,null,null,null,null,null,null,null,"Ort, Datum, Unterschrift"]
[]
[]
[]
[]
[]
["WEITERE AUFLAGEN UND BEDINGUNGEN:"]
["Der entsprechende Anhang ist Bestandteil dieses Gesuchs (Zeitplan, geplante Massnahmen, Verfahren usw.)."]

{"sheet":"Passage UG - Annexe","index":4,"n_rows":26,"n_cols":18,"rows_kept":26,"cut":false,"hidden":true,"merged":[[23,0,23,3],[23,4,23,6],[17,0,17,7],[17,8,17,18],[19,0,19,7],[19,8,19,18],[22,0,22,18],[12,0,12,7],[12,8,12,9],[12,10,12,11],[12,14,15,16],[12,17,15,18],[13,0,13,7],[13,8,13,9],[13,10,13,11],[14,8,14,9],[14,10,14,11],[15,8,15,9],[15,10,15,11],[6,0,6,7],[6,8,6,18],[8,0,8,7],[8,8,8,18],[10,0,10,7],[10,10,10,11],[5,0,5,7],[5,8,5,11],[0,0,0,18],[1,0,1,18],[2,0,2,18],[4,0,4,18]]}
[]
["Anlage zum Gesuch"]
["Betriebseinheit, die zur gemeinsamen Bewirtschaftung wechselt (GF-U)"]
[]
["BESCHREIBUNG"]
["Genehmigungsdatum der Statuten oder der Vereinbarung"]
["Juristische Form der Betriebseinheit"]
[]
["Mitglieder der Betriebseinheit"]
[]
["Durch die Betriebseinheit bewirtschaftete Fläche",null,null,null,null,null,null,null,null,null,null,null,"ha"]
[]
["Vorgesehenes, zu nutzendes Holzvolumen ",null,null,null,null,null,null,null,2026,null,null,null,"m3",null,{"$f":"SUM(K13:L16)","v":0},null,null,"m3/4 Jahre"]
["(im Prinzip Hiebsatz)",null,null,null,null,null,null,null,{"$f":"I13+1","v":2027},null,null,null,"m3"]
[null,null,null,null,null,null,null,null,{"$f":"I14+1","v":2028},null,null,null,"m3"]
[null,null,null,null,null,null,null,null,2029,null,null,null,"m3"]
[]
["Basis-Forstequipe der Betriebseinheit"]
[]
["Buchhaltungssoftware",null,null,null,null,null,null,null,"ForstBAR, oder"]
[]
[]
["SUBVENTION"]
["Pauschalbetrag (Fr.)"]
[]
["Die Auszahlung der Subvention erfolgt nach der Unterschrift des Vertrages, im Rahmen der verfügbaren Kredite."]

{"sheet":"Fusion - Annexe","index":5,"n_rows":31,"n_cols":18,"rows_kept":31,"cut":false,"hidden":true,"merged":[[25,0,25,9],[23,10,23,12],[24,10,24,12],[25,10,25,12],[24,4,24,5],[23,0,23,3],[24,0,24,3],[24,8,24,9],[24,6,24,7],[2,0,2,18],[12,14,15,16],[12,17,15,18],[8,0,8,7],[6,0,6,7],[5,8,5,11],[6,8,6,18],[8,8,8,18],[12,10,12,11],[10,10,10,11],[10,0,10,7],[15,8,15,9],[14,8,14,9],[13,8,13,9],[12,8,12,9],[0,0,0,18],[4,0,4,18],[30,0,30,18],[5,0,5,7],[13,0,13,7],[29,0,29,18],[22,0,22,18],[19,0,19,7],[19,8,19,18],[15,10,15,11],[14,10,14,11],[13,10,13,11],[17,0,17,7],[17,8,17,18],[12,0,12,7],[1,0,1,18]]}
[]
["Anlage zum Gesuch"]
["Fusion von Betriebseinheiten (GF-U)"]
[]
["BESCHREIBUNG"]
["Genehmigungsdatum der Statuten oder der Vereinbarung"]
["Juristische Form der Betriebseinheit"]
[]
["Mitglieder der fusionierten Betriebseinheit"]
[]
["Durch die Betriebseinheit bewirtschaftete Fläche",null,null,null,null,null,null,null,null,null,null,null,"ha"]
[]
["Vorgesehenes, zu nutzendes Holzvolumen ",null,null,null,null,null,null,null,2026,null,null,null,"m3",null,{"$f":"SUM(K13:L16)","v":0},null,null,"m3/4 Jahre"]
["(im Prinzip Hiebsatz)",null,null,null,null,null,null,null,{"$f":"I13+1","v":2027},null,null,null,"m3"]
[null,null,null,null,null,null,null,null,{"$f":"I14+1","v":2028},null,null,null,"m3"]
[null,null,null,null,null,null,null,null,2029,null,null,null,"m3"]
[]
["Basis-Forstequipe der Betriebseinheit"]
[]
["Buchhaltungssoftware",null,null,null,null,null,null,null,"ForstBAR, oder"]
[]
[]
["SUBVENTION"]
["Fixer Betrag (Fr.)"]
["Variabler Betrag  (Fr.)",null,null,null,null,null,"m3/4 Jahre",null,"x 2.- Fr./m3",null,{"$f":"IF(ISBLANK(E25), \"\", E25*2)","v":""}]
["Total (Fr.)",null,null,null,null,null,null,null,null,null,{"$f":"SUM(K24:L25)","v":0}]
[]
["Die Auszahlung der Subvention erfolgt nach der Unterschrift des Vertrages, im Rahmen der verfügbaren Kredite."]
[]
["Bemerkungen"]
["Eventuell die Berechnung aufteilen und über zwei NFA-Perioden verteilen. Wegen der Verschiebung zwischen den Jahren des Vertrages (20.. bis 20..) und denjenigen der Programmvereinbarung zwischen dem Kanton und der Eidgenossenschaft (20..-20..), ist der Teil des Vertrages für die Jahre 20.. und 20.. provisorisch. Diese provisorische Verpflichtung erhält für die Unterzeichner des Vertrages einen definitiven Charakter, falls die nächste Programmvereinbarung die verschiedenen Leistungen integriert."]

{"sheet":"Optimisation - Annexe","index":6,"n_rows":34,"n_cols":18,"rows_kept":34,"cut":false,"hidden":true,"merged":[[29,13,29,14],[29,15,29,16],[29,17,29,18],[30,9,30,10],[30,11,30,12],[30,13,30,14],[30,15,30,16],[30,17,30,18],[29,9,29,10],[29,11,29,12],[32,0,32,8],[31,0,31,8],[33,0,33,18],[31,17,31,18],[32,17,32,18],[31,13,31,14],[31,15,31,16],[32,9,32,10],[32,11,32,12],[32,13,32,14],[32,15,32,16],[31,9,31,10],[31,11,31,12],[16,17,16,18],[17,17,17,18],[18,17,18,18],[19,17,19,18],[20,17,20,18],[17,13,17,14],[18,13,18,14],[19,13,19,14],[20,13,20,14],[16,15,16,16],[17,15,17,16],[18,15,18,16],[19,15,19,16],[20,15,20,16],[16,13,16,14],[16,11,16,12],[17,11,17,12],[18,11,18,12],[19,11,19,12],[20,11,20,12],[20,0,20,10],[19,0,19,10],[18,0,18,10],[17,0,17,10],[16,0,16,10],[12,1,12,18],[14,0,14,18],[15,11,15,12],[15,13,15,14],[15,15,15,16],[15,17,15,18],[30,0,30,8],[29,0,29,8],[0,0,0,18],[1,0,1,18],[2,0,2,18],[4,0,4,18],[22,0,22,18],[24,5,24,7],[15,0,15,8],[5,1,5,18],[6,1,6,18],[7,1,7,18],[8,1,8,18],[9,1,9,18],[10,1,10,18],[11,1,11,18]]}
[]
["Anlage zum Gesuch"]
["Optimierung der Strukturen und Prozesse zur Verwaltung des Waldbesitzes (GF-O)"]
[]
["ZU ERBRINGENDE LEISTUNGEN"]
[1]
[2]
[3]
[4]
[5]
[6]
[7]
[8]
[]
["PARAMETERN UND INDIKATOREN"]
[null,null,null,null,null,null,null,null,null,null,null,2026,null,{"$f":"L16+1","v":2027},null,{"$f":"N16+1","v":2028},null,{"$f":"P16+1","v":2029}]
[]
[]
[]
[]
[]
[]
["SUBVENTION"]
[]
["Die anerkannten Kosten  :",null,null,null,null,null,null,null,"Fr."]
[]
[]
["Der Bund gewährt dem Kanton einen Subventionsbetrag in Höhe von 40 % der anerkannten Kosten."]
[]
["Jährliche Aufteilung der Finanzierung",null,null,null,null,null,null,null,null,{"$f":"L16","v":2026},null,{"$f":"J30+1","v":2027},null,{"$f":"L30+1","v":2028},null,{"$f":"N30+1","v":2029},null,"TOTAL"]
["Anerkannten Kosten (Fr.)",null,null,null,null,null,null,null,null,null,null,null,null,null,null,null,null,{"$f":"SUM(J31:Q31)","v":0}]
["Vom WNA zu kassierender Bundessubvention (Fr.)",null,null,null,null,null,null,null,null,{"$f":"J31*(40/100)","v":0},null,{"$f":"L31*(40/100)","v":0},null,{"$f":"N31*(40/100)","v":0},null,{"$f":"P31*(40/100)","v":0},null,{"$f":"SUM(J32:Q32)","v":0}]
["Kantonaler Subvention (80%), die dem Projektträger ausbezahlt wird (Fr.)",null,null,null,null,null,null,null,null,{"$f":"J31*(80/100)","v":0},null,{"$f":"L31*(80/100)","v":0},null,{"$f":"N31*(80/100)","v":0},null,{"$f":"P31*(80/100)","v":0},null,{"$f":"SUM(J33:Q33)","v":0}]
["Die Auszahlung der Subvention durch den WNA erfolgt im Rahmen der verfügbaren Mittel, nach Vorlage der jährlichen Abrechnungsunterlagen gemäß den Richtlinien und vorbehaltlich der Einhaltung der Auflagen im Zusammenhang mit dieser Genehmigung.\nDer Projektträger legt dem WNA jedes Jahr die Abrechnung der im Rahmen des Projekts durchgeführten Arbeiten sowie den Stand der Indikatoren vor."]

{"sheet":"Optimisation - Décompte","index":7,"n_rows":50,"n_cols":17,"rows_kept":50,"cut":false,"hidden":true,"merged":[[34,0,34,18],[31,0,31,12],[31,13,31,15],[31,16,31,18],[30,1,30,12],[33,0,33,18],[35,0,35,18],[37,0,37,1],[37,2,37,8],[37,10,37,13],[37,14,37,18],[40,0,40,18],[41,0,41,18],[47,1,47,8],[47,9,47,11],[48,1,48,8],[48,9,48,11],[49,1,49,8],[49,9,49,11],[43,9,43,11],[44,1,44,8],[44,9,44,11],[46,1,46,8],[46,9,46,11],[9,0,9,2],[22,0,22,18],[11,0,11,18],[12,10,12,12],[12,13,12,15],[12,16,12,18],[12,0,12,3],[12,4,12,6],[12,7,12,9],[17,16,17,18],[16,0,16,3],[16,4,16,6],[15,0,15,3],[15,4,15,6],[15,7,15,9],[15,10,15,12],[15,13,15,15],[15,16,15,18],[14,0,14,3],[14,4,14,6],[16,7,16,9],[16,10,16,12],[16,13,16,15],[16,16,16,18],[0,0,0,18],[1,0,1,18],[2,0,2,18],[4,0,4,8],[14,7,14,9],[14,10,14,12],[14,13,14,15],[13,16,13,18],[13,0,13,3],[13,4,13,6],[13,7,13,9],[13,10,13,12],[13,13,13,15],[14,16,14,18],[5,0,5,8],[5,10,5,12],[5,13,5,18],[6,0,6,2],[6,3,6,8],[6,10,6,12],[6,13,6,18],[7,8,7,9],[8,0,8,2],[8,3,8,5],[29,1,29,12],[30,13,30,15],[30,16,30,18],[25,13,25,15],[25,16,25,18],[26,13,26,15],[26,16,26,18],[29,13,29,15],[29,16,29,18],[27,1,27,12],[27,13,27,15],[27,16,27,18],[25,1,25,12],[26,1,26,12],[17,0,17,3],[17,4,17,6],[17,7,17,9],[17,10,17,12],[17,13,17,15],[28,1,28,12],[28,13,28,15],[28,16,28,18],[19,0,19,18],[20,0,20,18],[24,1,24,12],[23,1,23,12],[23,13,23,15],[23,16,23,18],[24,13,24,15],[24,16,24,18]]}
[]
["Abrechnung der Subvention"]
["Optimierung der Strukturen und Prozesse zur Verwaltung des Waldbesitzes (GF-O)"]
[]
["Name des Projekts"]
[{"$f":"IF(ISBLANK('Gesuch 2'!D10), \"\", 'Gesuch 2'!D10)","v":""},null,null,null,null,null,null,null,null,null,"Forstkreis Nr.",null,null,{"$f":"IF(ISBLANK('Gesuch 2'!N10), \"\", 'Gesuch 2'!N10)","v":""}]
["Projekt Nr.",null,null,{"$f":"IF(ISBLANK('Gesuch 2'!D12), \"\", 'Gesuch 2'!D12)","v":""},null,null,null,null,null,null,"Bauherr"]
[]
["Teilabrechnung Nr.",null,null,null,null,null,null,"Ausgabenschätzung",null,null,null,null,"Abrechnung nach Belegen (mit separaten Dokumenten)"]
["Endabrechnung"]
[]
["Abrechnung der Indikatoren"]
[null,null,null,null,{"$f":"'Optimisation - Annexe'!J30","v":2026},null,null,{"$f":"E13+1","v":2027},null,null,{"$f":"H13+1","v":2028},null,null,{"$f":"K13+1","v":2029},null,null,{"$f":"\"Ziel \" & N13","v":"Ziel 2029"}]
[]
[]
[]
[]
[]
[]
["Beschreibung der durchgeführten Arbeiten"]
[]
[]
["Abrechnung von Subventionen"]
["Nr.","Unternehmen / Rubrik der Arbeit",null,null,null,null,null,null,null,null,null,null,null,"Anerkannte Kosten (Fr.)",null,null,"Subvention (Fr.)"]
[1]
[2]
[3]
[4]
[5]
[6]
[8]
["T O T A L ",null,null,null,null,null,null,null,null,null,null,null,null,{"$f":"SUM(N25:P31)","v":0},null,null,{"$f":"SUM(Q25:S31)","v":0}]
[]
["Die Trägerschaft und der Bauherr bestätigen, dass die Arbeiten gemäss dem abgeschlossenen Vertrag und dem genehmigten Projekt ausgeführt wurden, und beantragen die Auszahlung der Subvention."]
["Außerdem bestätigt der Forstkreisleiter, dass er die Belege geprüft und für richtig befunden hat."]
["Der Bauherr ist in der Lage, im Falle einer Kontrolle die Originalunterlagen vorzulegen."]
[]
["Ort, Datum: ",null,null,null,null,null,null,null,null,null,"Der Bauherr :"]
[]
[]
["Auszahlung der Subvention (vom WNA auszufüllen)"]
["Das Amt für Wald und Natur genehmigt die vorliegende Abrechnung und gewährt die entsprechende Subvention (inkl. Steuern und Abgaben), d.h. :"]
[]
[null,null,null,null,null,null,null,null,null,"Betrag (Fr.)"]
[null,"Summe der abgerechneten Subventionen :"]
[]
[null,"% Akontozahlung vom :"]
[null,"% Akontozahlung vom :"]
[null,"% Akontozahlung vom :"]
[null,"Restbetrag der auszuzahlenden Subventionen :"]

{"sheet":"Amélioration - Annexe","index":8,"n_rows":43,"n_cols":17,"rows_kept":43,"cut":false,"hidden":true,"merged":[[42,0,42,18],[23,5,23,7],[23,13,23,15],[25,13,25,15],[27,3,27,5],[30,8,30,10],[40,16,40,18],[41,0,41,5],[41,6,41,7],[41,8,41,9],[41,10,41,11],[41,12,41,13],[41,14,41,15],[41,16,41,18],[40,6,40,7],[40,8,40,9],[40,10,40,11],[40,12,40,13],[40,14,40,15],[38,16,38,18],[39,6,39,7],[39,8,39,9],[39,10,39,11],[39,12,39,13],[39,14,39,15],[39,16,39,18],[38,6,38,7],[38,8,38,9],[38,10,38,11],[38,12,38,13],[38,14,38,15],[38,0,38,5],[39,0,39,5],[40,0,40,5],[34,0,35,5],[34,16,35,18],[36,14,36,15],[36,12,36,13],[36,10,36,11],[36,8,36,9],[36,6,36,7],[36,16,36,18],[37,6,37,7],[37,8,37,9],[37,10,37,11],[37,12,37,13],[37,14,37,15],[35,14,35,15],[34,6,34,15],[36,0,36,5],[37,0,37,5],[37,16,37,18],[35,6,35,7],[35,8,35,9],[35,10,35,11],[35,12,35,13],[33,0,33,18],[21,0,21,18],[14,12,14,14],[14,15,14,17],[18,1,18,11],[17,1,17,11],[16,1,16,11],[15,1,15,11],[15,12,15,14],[16,12,16,14],[17,12,17,14],[18,12,18,14],[18,15,18,17],[17,15,17,17],[16,15,16,17],[15,15,15,17],[12,1,12,2],[11,1,11,2],[10,1,10,2],[12,5,12,16],[0,0,0,18],[4,0,4,18],[1,0,1,18],[2,0,2,18],[6,5,6,7]]}
[]
["Anlage zum Gesuch"]
["Massnahmen zur Verbesserung der Bewirtschaftungsbedingungen (PC-e)"]
[]
["GRUNDDATEN DES WALDBESITZES"]
[]
["Gesamtfläche des Perimeters",null,null,null,null,null,null,null,"ha"]
[]
["PROJEKTTYP"]
[]
[null,null,null,"Güterzusammenlegung"]
[null,null,null,"Freiwillige Umlegung von Waldparzellen"]
[null,null,null,"Andere :"]
[]
[null,null,null,null,null,null,null,null,null,null,null,null,"Ehemaliger Zustand",null,null,"Neuer Zustand\n(Schätzung)"]
[null,"Anzahl der Besitzer"]
[null,"Anzahl der Parzellen"]
[null,"Fläche pro Eigentümer [ha]"]
[null,"Fläche pro Parzelle [ha]"]
[]
[]
["KANTONALE SUBVENTIONEN"]
[]
["Die anerkannten Kosten belaufen sich auf : ",null,null,null,null,null,null,null,"Fr.",null,null,null,"oder",{"$f":"IF(OR(ISBLANK(F24), ISBLANK(F7)), \"\", F24/F7)","v":""},null,null,"Fr./ha"]
[]
["Eine kantonale Subvention wird gemäss Art. 64 Bst. e WSG eingereicht, mit einem Ansatz von : ",null,null,null,null,null,null,null,null,null,null,null,null,null,null,null,"%"]
[]
["Der Betrag von",null,null,null,null,null,"Fr. der vom Kanton bezahlten Vorstudie muss von den Subventionen abgezogen werden."]
[]
[]
["SUBVENTIONSBETRAG:",null,null,null,null,null,null,null,{"$f":"F24*(N26/100) - D28","v":0},null,null,"Fr."]
[]
[]
["JÄHRLICHE VERTEILUNG DER ARBEITEN UND SUBVENTIONEN"]
["Kategorie",null,null,null,null,null,"Betrag (Fr.)",null,null,null,null,null,null,null,null,null,"TOTAL (Fr.)"]
[null,null,null,null,null,null,2026,null,{"$f":"G36+1","v":2027},null,{"$f":"I36+1","v":2028},null,{"$f":"K36+1","v":2029},null,{"$f":"M36+1","v":2030}]
[null,null,null,null,null,null,null,null,null,null,null,null,null,null,null,null,{"$f":"SUM(G37:P37)","v":0}]
[null,null,null,null,null,null,null,null,null,null,null,null,null,null,null,null,{"$f":"SUM(G38:P38)","v":0}]
[null,null,null,null,null,null,null,null,null,null,null,null,null,null,null,null,0]
[null,null,null,null,null,null,null,null,null,null,null,null,null,null,null,null,0]
[null,null,null,null,null,null,null,null,null,null,null,null,null,null,null,null,0]
["Kantonale Subvention",null,null,null,null,null,{"$f":"SUM(G37:H41)","v":0},null,{"$f":"SUM(I37:J41)","v":0},null,{"$f":"SUM(K37:L41)","v":0},null,{"$f":"SUM(M37:N41)","v":0},null,{"$f":"SUM(O37:P41)","v":0},null,{"$f":"SUM(Q37:S41)","v":0}]
["Die Auszahlung der Subvention erfolgt im Rahmen der verfügbaren Mittel nach Vorlage der Abrechnungsunterlagen gemäß den Richtlinien des Amts für Wald und Natur."]

{"sheet":"Amélioration - Décompte","index":9,"n_rows":59,"n_cols":18,"rows_kept":59,"cut":false,"hidden":true,"merged":[[21,16,21,18],[22,1,22,9],[22,10,22,12],[22,13,22,15],[22,16,22,18],[19,13,19,15],[19,16,19,18],[20,1,20,9],[20,10,20,12],[20,13,20,15],[20,16,20,18],[37,0,37,18],[38,0,38,18],[40,0,40,18],[42,0,42,1],[44,0,44,1],[42,2,42,8],[44,2,44,8],[44,10,44,13],[42,10,42,13],[42,14,42,18],[44,14,44,18],[34,1,34,10],[33,1,33,10],[32,1,32,10],[31,1,31,10],[32,11,32,13],[32,14,32,16],[33,11,33,13],[33,14,33,16],[34,11,34,13],[34,14,34,16],[28,14,28,16],[27,14,27,16],[30,11,30,13],[30,14,30,16],[31,14,31,16],[31,11,31,13],[26,0,26,9],[25,0,25,18],[17,1,17,9],[17,10,17,12],[17,13,17,15],[17,16,17,18],[23,0,23,12],[23,13,23,15],[23,16,23,18],[18,1,18,9],[18,10,18,12],[18,13,18,15],[18,16,18,18],[19,1,19,9],[19,10,19,12],[21,1,21,9],[21,10,21,12],[21,13,21,15],[15,1,15,9],[15,10,15,12],[15,13,15,15],[15,16,15,18],[16,1,16,9],[16,10,16,12],[16,13,16,15],[16,16,16,18],[13,16,13,18],[13,13,13,15],[13,10,13,12],[13,1,13,9],[14,1,14,9],[14,10,14,12],[14,13,14,15],[14,16,14,18],[9,0,9,2],[8,0,8,2],[11,0,11,18],[12,10,12,12],[12,13,12,15],[12,16,12,18],[12,1,12,9],[8,3,8,5],[7,8,7,9],[6,3,6,8],[5,13,5,18],[6,13,6,18],[5,0,5,8],[6,10,6,12],[5,10,5,12],[6,0,6,2],[4,0,4,8],[0,0,0,18],[1,0,1,18],[2,0,2,18],[47,0,47,18],[48,0,48,18],[53,15,53,17],[53,12,53,14],[53,9,53,11],[58,9,58,11],[57,9,57,11],[56,9,56,11],[55,9,55,11],[58,1,58,8],[57,1,57,8],[56,1,56,8],[55,1,55,8],[53,1,53,8],[49,0,49,18],[50,0,50,18],[52,15,52,17],[52,12,52,14],[52,9,52,11]]}
[]
["Abrechnung der Subvention"]
["Massnahmen zur Verbesserung der Bewirtschaftungsbedingungen (PC-e)"]
[]
["Name des Projekts"]
[{"$f":"IF(ISBLANK('Gesuch 2'!D10), \"\", 'Gesuch 2'!D10)","v":""},null,null,null,null,null,null,null,null,null,"Forstkreis Nr.",null,null,{"$f":"IF(ISBLANK('Gesuch 2'!N10), \"\", 'Gesuch 2'!N10)","v":""}]
["Projekt Nr.",null,null,{"$f":"IF(ISBLANK('Gesuch 2'!D12), \"\", 'Gesuch 2'!D12)","v":""},null,null,null,null,null,null,"Bauherr"]
[]
["Teilabrechnung Nr.",null,null,null,null,null,null,"Ausgabenschätzung",null,null,null,null,"Abrechnung nach Belegen (mit separaten Dokumenten)"]
["Endabrechnung"]
[]
["Belege (evtl. auf separatem Blatt)"]
["Nr.","Unternehmen / Beschreibung der Arbeit",null,null,null,null,null,null,null,null,"Datum",null,null,"Betrag (Fr.)",null,null,"Subvention (Fr.)"]
[1,null,null,null,null,null,null,null,null,null,null,null,null,null,null,null,{"$f":"IF(ISBLANK(N14), \"\", N14*('Amélioration - Annexe'!$N$26/100))","v":""}]
[2,null,null,null,null,null,null,null,null,null,null,null,null,null,null,null,{"$f":"IF(ISBLANK(N15), \"\", N15*('Amélioration - Annexe'!$N$26/100))","v":""}]
[3,null,null,null,null,null,null,null,null,null,null,null,null,null,null,null,{"$f":"IF(ISBLANK(N16), \"\", N16*('Amélioration - Annexe'!$N$26/100))","v":""}]
[4,null,null,null,null,null,null,null,null,null,null,null,null,null,null,null,{"$f":"IF(ISBLANK(N17), \"\", N17*('Amélioration - Annexe'!$N$26/100))","v":""}]
[5,null,null,null,null,null,null,null,null,null,null,null,null,null,null,null,{"$f":"IF(ISBLANK(N18), \"\", N18*('Amélioration - Annexe'!$N$26/100))","v":""}]
[6,null,null,null,null,null,null,null,null,null,null,null,null,null,null,null,{"$f":"IF(ISBLANK(N19), \"\", N19*('Amélioration - Annexe'!$N$26/100))","v":""}]
[7,null,null,null,null,null,null,null,null,null,null,null,null,null,null,null,{"$f":"IF(ISBLANK(N20), \"\", N20*('Amélioration - Annexe'!$N$26/100))","v":""}]
[8,null,null,null,null,null,null,null,null,null,null,null,null,null,null,null,{"$f":"IF(ISBLANK(N21), \"\", N21*('Amélioration - Annexe'!$N$26/100))","v":""}]
[9,null,null,null,null,null,null,null,null,null,null,null,null,null,null,null,{"$f":"IF(ISBLANK(N22), \"\", N22*('Amélioration - Annexe'!$N$26/100))","v":""}]
[10,null,null,null,null,null,null,null,null,null,null,null,null,null,null,null,{"$f":"IF(ISBLANK(N23), \"\", N23*('Amélioration - Annexe'!$N$26/100))","v":""}]
["T O T A L ",null,null,null,null,null,null,null,null,null,null,null,null,{"$f":"SUM(N14:P18)","v":0},null,null,{"$f":"SUM(Q14:S18)","v":0}]
[]
["Wenn Endabrechnung: Eigentumsdaten"]
[]
[null,"Gesamtfläche des Perimeters",null,null,null,null,null,null,null,null,null,null,null,null,null,null,null,"ha"]
[null,"Im Vertrag vorgesehene Subventionen",null,null,null,null,null,null,null,null,null,null,null,null,{"$f":"'Amélioration - Annexe'!I31","v":0},null,null,"Fr."]
[]
[null,null,null,null,null,null,null,null,null,null,null,"Ehemaliger Zustand",null,null,"Neuer Zustand"]
[null,"Anzahl der Besitzer"]
[null,"Anzahl der Parzellen"]
[null,"Fläche pro Eigentümer [ha]"]
[null,"Fläche pro Parzelle [ha]"]
[]
[]
["Bescheinigung der Konformität der Arbeiten und Antrag auf Auszahlung der Subvention"]
["Mit ihrer Unterschrift bestätigen die Unterzeichnenden, dass die Arbeiten gemäß dem abgeschlossenen Vertrag und dem genehmigten Projekt durchgeführt wurden."]
[]
["Der Bauherr ist in der Lage, im Falle einer Kontrolle die Originalunterlagen vorzulegen."]
[]
["Ort, Datum: ",null,null,null,null,null,null,null,null,null,"Der Bauherr :"]
[]
["Ort, Datum: ",null,null,null,null,null,null,null,null,null,"Die Bauleitung :"]
[]
[]
["Bemerkungen"]
[]
["Auszahlung der Subvention (von WNA auszufüllen)"]
["Das Amt für Wald und Natur genehmigt die vorliegende Abrechnung und gewährt die entsprechende Subvention (inkl. Steuern und Abgaben), d.h. :"]
[]
[null,null,null,null,null,null,null,null,null,"Betrag (Fr.)",null,null," analytische Rubrik",null,null,"finanz. Rubrik"]
[null,"Summe der abgerechneten Subventionen :"]
[]
[null,"% Akontozahlung vom :"]
[null,"% Akontozahlung vom :"]
[null,"% Akontozahlung vom :"]
[null,"Restbetrag der auszuzahlenden Subventionen :"]

{"sheet":"Accueil - Annexe","index":10,"n_rows":60,"n_cols":16,"rows_kept":60,"cut":false,"hidden":true,"merged":[[47,0,47,10],[47,11,47,12],[46,0,46,10],[46,11,46,12],[29,0,29,4],[29,5,29,6],[29,7,29,8],[29,9,29,10],[29,11,29,12],[42,7,42,8],[42,9,42,10],[31,5,31,6],[31,7,31,8],[31,9,31,10],[31,11,31,12],[33,11,33,12],[45,0,45,4],[45,5,45,6],[45,7,45,8],[45,9,45,10],[45,11,45,12],[42,11,42,12],[43,0,43,4],[43,5,43,6],[29,13,29,14],[29,15,29,18],[30,0,30,4],[30,5,30,6],[30,7,30,8],[30,9,30,10],[30,11,30,12],[30,13,30,14],[30,15,30,18],[25,0,25,4],[25,5,25,6],[25,7,25,8],[25,9,25,10],[25,11,25,12],[25,13,25,14],[25,15,25,18],[26,0,26,4],[26,5,26,6],[26,7,26,8],[26,9,26,10],[26,11,26,12],[26,13,26,14],[26,15,26,18],[59,0,59,18],[15,0,15,18],[17,13,17,14],[17,11,17,12],[17,9,17,10],[17,7,17,8],[17,5,17,6],[16,0,16,1],[16,2,16,3],[20,11,20,12],[20,13,20,14],[20,15,20,18],[21,0,21,4],[21,5,21,6],[21,7,21,8],[21,9,21,10],[21,11,21,12],[21,13,21,14],[21,15,21,18],[22,0,22,4],[22,5,22,6],[18,0,18,18],[22,7,22,8],[22,9,22,10],[55,1,55,4],[55,5,55,8],[56,1,56,4],[57,1,57,4],[56,5,56,8],[57,5,57,8],[52,1,52,4],[52,5,52,8],[53,1,53,4],[53,5,53,8],[54,1,54,4],[54,5,54,8],[12,10,12,18],[13,1,13,18],[12,1,12,9],[11,1,11,9],[11,10,11,18],[51,1,51,4],[51,5,51,8],[17,15,17,18],[17,0,17,4],[19,15,19,18],[19,13,19,14],[19,11,19,12],[19,9,19,10],[19,7,19,8],[19,5,19,6],[19,0,19,4],[20,0,20,4],[20,5,20,6],[20,7,20,8],[20,9,20,10],[22,11,22,12],[22,13,22,14],[22,15,22,18],[23,0,23,4],[5,0,5,18],[7,0,7,18],[9,1,9,9],[0,0,0,18],[4,0,4,18],[10,1,10,9],[9,10,9,18],[10,10,10,18],[1,0,1,18],[2,0,2,18],[23,9,23,10],[23,11,23,12],[23,13,23,14],[23,15,23,18],[24,0,24,4],[24,5,24,6],[24,7,24,8],[24,9,24,10],[24,11,24,12],[24,13,24,14],[24,15,24,18],[23,5,23,6],[23,7,23,8],[27,5,27,6],[27,7,27,8],[27,9,27,10],[27,11,27,12],[27,13,27,14],[27,15,27,18],[28,0,28,4],[28,5,28,6],[28,7,28,8],[28,9,28,10],[28,11,28,12],[28,13,28,14],[28,15,28,18],[27,0,27,4],[31,13,31,14],[31,15,31,18],[32,0,32,4],[32,5,32,6],[32,7,32,8],[32,9,32,10],[32,11,32,12],[32,13,32,14],[32,15,32,18],[31,0,31,4],[33,13,33,14],[33,15,33,18],[33,0,33,10],[39,0,39,4],[39,5,39,6],[39,7,39,8],[39,9,39,10],[39,11,39,12],[40,0,40,4],[40,5,40,6],[40,7,40,8],[40,9,40,10],[40,11,40,12],[38,0,38,12],[43,7,43,8],[43,9,43,10],[43,11,43,12],[44,0,44,4],[44,5,44,6],[44,7,44,8],[44,9,44,10],[44,11,44,12],[41,0,41,4],[41,5,41,6],[41,7,41,8],[41,9,41,10],[41,11,41,12],[42,0,42,4],[42,5,42,6]]}
[]
["Anlage zum Gesuch"]
["Freizeit und Erholung im Wald (PC-b)"]
[]
["GRÜNDE UND BEDINGUNGEN DER FÖRDERUNG"]
["Die Massnahmen zur Freizeit und Erholung im Wald werden gemäss Kapitel 2.2 des Anhangs zur Verordnung vom 30. März 2004 über die Kantonsbeiträge für den Wald und den Schutz vor Naturereignissen (SubV) subventioniert.\nDie Subvention ermutigt die Betriebseinheiten dazu, Leistungen umzusetzen, dank denen die Ziele zugunsten der Freizeit und Erholung im Wald erreicht werden können. "]
[]
["ZIELE UND ZU ERBRINGENDE LEISTUNGEN"]
[null,"Ziel",null,null,null,null,null,null,null,null,"Leistungen"]
["1.","Zusatzmassnahmen für die Sicherheit von Drittpersonen während Waldarbeiten werden umgesetzt.",null,null,null,null,null,null,null,null,"Absperrung der Wege und Einrichtungen, Kontrolle, Information und intensive Kommunikation."]
["2.","Spezielle waldbauliche Massnahmen für die Waldbesucherinnen und -besucher werden umgesetzt.",null,null,null,null,null,null,null,null,"Aussichtsfenster, Erhaltung wertvoller, ungefährlicher Bäume (alt, ästhetisch, spezielle Form), Pflanzung besonderer Bäume und Sträucher für die Ästhetik, Schlagabraum, feine Eingriffe. "]
["3.","Die von der Öffentlichkeit stark begangenen Wege sind in gutem Zustand.",null,null,null,null,null,null,null,null,"Wege werden häufiger und intensiver als normal unterhalten. "]
["4.","Der Wald ist vor Schäden durch Waldbesucherinnen und Waldbesucher geschützt.",null,null,null,null,null,null,null,null,"Zäunen von Jungwald und Nachpflanzung."]
["5.","Berücksichtigung, bei der Planung und Durchführung der Arbeiten, von erschwertem Zugang bei Arbeiten und Behinderungen bei Holzlagerung und Beladen der Lastwagen (zum Beispiel durch parkierte Fahrzeuge). "]
[]
["BERECHNUNG DER JÄHRLICHE SUBVENTION"]
["Pauschale :",null,4.0999999999999996,null,"Fr./ha.an"]
["Gemeinde",null,null,null,null,"Anzahl der Einwohner",null,"Wald (ha)",null,"Einwohner dichte (Einw./ha)",null,"Verwaltete Waldfläche (ohne Schutzwälder und Perimeter Biodiversität) (ha)",null,"Gewichtete Ha\n(Bewirtschaf-teter Wald x Einw./ha)",null,"Jährliche Subvention (Fr.)"]
["Gemeinden ab 3 Einwohner pro Hektar Wald auf dem Gemeindegebiet"]
[null,null,null,null,null,null,null,null,null,{"$f":"IF(OR(ISBLANK(F20), ISBLANK(H20)), \"\", F20/H20)","v":""},null,null,null,{"$f":"IF(ISBLANK(L20), \"\", J20*L20)","v":""},null,{"$f":"IF(ISBLANK(L20), \"\", N20*$C$17)","v":""}]
[{"$f":"IF(OR(ISBLANK(E21), ISBLANK(G21)), \"\", E21/G21)","v":""},null,null,null,null,null,null,null,null,{"$f":"IF(OR(ISBLANK(F21), ISBLANK(H21)), \"\", F21/H21)","v":""},null,null,null,{"$f":"IF(ISBLANK(L21), \"\", J21*L21)","v":""},null,{"$f":"IF(ISBLANK(L21), \"\", N21*$C$17)","v":""}]
["",null,null,null,null,null,null,null,null,"",null,null,null,"",null,""]
["",null,null,null,null,null,null,null,null,"",null,null,null,"",null,""]
["",null,null,null,null,null,null,null,null,"",null,null,null,"",null,""]
["",null,null,null,null,null,null,null,null,"",null,null,null,"",null,""]
["",null,null,null,null,null,null,null,null,"",null,null,null,"",null,""]
["",null,null,null,null,null,null,null,null,"",null,null,null,"",null,""]
["",null,null,null,null,null,null,null,null,"",null,null,null,"",null,""]
["",null,null,null,null,null,null,null,null,"",null,null,null,"",null,""]
["",null,null,null,null,null,null,null,null,"",null,null,null,"",null,""]
["",null,null,null,null,null,null,null,null,"",null,null,null,"",null,""]
["",null,null,null,null,null,null,null,null,"",null,null,null,"",null,""]
["",null,null,null,null,null,null,null,null,"",null,null,null,"",null,""]
["Total",null,null,null,null,null,null,null,null,null,null,{"$f":"SUM(L20:M33)","v":0},null,{"$f":"SUM(N20:O33)","v":0},null,{"$f":"SUM(P20:S33)","v":0}]
[]
[]
[]
[]
["Die folgenden Gemeinden mit weniger als 3 Einwohnern pro Hektar Wald auf dem Gemeindegebiet sind von der Berechnung der Subvention ausgeschlossen"]
[null,null,null,null,null,null,null,null,null,{"$f":"IF(OR(ISBLANK(F40), ISBLANK(H40)), \"\", F40/H40)","v":""}]
[{"$f":"IF(OR(ISBLANK(E41), ISBLANK(G41)), \"\", E41/G41)","v":""},null,null,null,null,null,null,null,null,{"$f":"IF(OR(ISBLANK(F41), ISBLANK(H41)), \"\", F41/H41)","v":""}]
["",null,null,null,null,null,null,null,null,""]
["",null,null,null,null,null,null,null,null,""]
["",null,null,null,null,null,null,null,null,""]
["",null,null,null,null,null,null,null,null,""]
["",null,null,null,null,null,null,null,null,""]
["Total",null,null,null,null,null,null,null,null,null,null,{"$f":"SUM(L40:M46)","v":0}]
["Total",null,null,null,null,null,null,null,null,null,null,{"$f":"L34+L47","v":0}]
[]
["Fälligkeitsplan der Zahlungen :"]
[]
[null,"Jahr",null,null,null,"Betrag (Fr.)"]
[null,2026]
[null,{"$f":"B53+1","v":2027}]
[null,{"$f":"B54+1","v":2028}]
[null,2029]
[null,2030]
[null,"Total",null,null,null,{"$f":"SUM(F53:I57)","v":0}]
[]
["Abgabefrist für den Jahresbericht ist Mitte Februar des folgenden Jahres.\n\nDie Subvention wird jährlich im Rahmen der verfügbaren Kredite ausbezahlt, gemäss Weisungen des Amts und sofern die in diesem Vertag festgehaltenen Voraussetzungen erfüllt sind. "]

{"sheet":"Soins UG - Annexe","index":11,"n_rows":51,"n_cols":17,"rows_kept":51,"cut":false,"hidden":true,"merged":[[6,7,6,10],[6,15,6,18],[6,0,6,6],[30,0,30,15],[29,13,29,15],[28,16,28,18],[28,13,28,15],[26,0,26,15],[29,0,29,9],[28,0,28,9],[27,0,27,9],[16,14,18,18],[16,0,18,4],[7,11,7,14],[7,15,7,18],[8,0,8,6],[0,0,0,18],[1,0,1,18],[2,0,2,18],[20,0,20,18],[17,7,17,13],[18,7,18,13],[16,5,16,13],[15,5,15,13],[4,0,4,18],[5,0,5,18],[11,0,11,18],[6,11,6,14],[7,0,7,6],[7,7,7,10],[18,5,18,6],[8,7,8,10],[8,11,8,14],[8,15,8,18],[12,0,12,18],[14,0,14,18],[9,0,9,6],[9,7,9,10],[21,0,21,18],[22,16,22,18],[22,13,22,15],[22,10,22,12],[24,0,24,9],[23,0,23,9],[22,0,22,9],[23,10,23,12],[24,10,24,12],[23,16,23,18],[23,13,23,15],[25,13,25,15],[40,5,40,8],[31,16,31,18],[29,16,29,18],[25,16,25,18],[27,13,27,15],[41,1,41,4],[15,0,15,4],[15,14,15,18],[9,11,9,14],[31,14,31,15],[9,15,9,18],[17,5,17,6],[26,16,26,18],[27,16,27,18],[24,16,24,18],[25,10,25,12],[25,0,25,9],[30,16,30,18],[27,10,27,12],[28,10,28,12],[29,10,29,12],[41,5,41,8],[24,13,24,15],[45,0,45,18],[48,0,48,18],[32,0,32,18],[37,1,37,4],[37,5,37,8],[38,1,38,4],[38,5,38,8],[39,1,39,4],[39,5,39,8],[34,0,34,18],[35,0,35,18],[44,0,44,18],[47,0,47,18],[40,1,40,4]]}
[]
["Anlage zum Gesuch"]
["Jungwaldpflege (GF-S / FP-J)"]
[]
["PERIMETER"]
["Der Perimeter des vorliegenden Vertrags umfasst die Wälder der Betriebseinheit.\nOhne Bestände in vertraglich gesicherten Waldreservaten umfasst die Betriebseinheit:"]
["Entwicklungsstufe",null,null,null,null,null,null,"Fläche (ha)",null,null,null,"davon ausserhalb Schutzwald  GF-S (ha)",null,null,null,"davon im Schutzwald \nFP-J (ha)"]
["100 und 200 im Mittelland",null,null,null,null,null,null,{"$f":"SUM(L8:S8)","v":0}]
["100 und 200 im Flysch- und Kalkgebiet",null,null,null,null,null,null,{"$f":"SUM(L9:S9)","v":0}]
[700,null,null,null,null,null,null,0]
[]
["DAUER"]
["Dieser Vertrag wird für die Dauer von 4 Jahren vom 1. Januar 2025 bis zum 31. Dezember 2028 abgeschlossen, soweit die Wirkungen einzelner Bestimmungen die Parteien nicht über diesen Zeitraum hinaus binden."]
[]
["VON DER BETRIEBSEINHEIT DURCHZUFÜHRENDE SUBVENTIONIERTE ARBEITEN"]
["Ziel",null,null,null,null,"Arbeiten der Betriebseinheit/\nKontrollindikator",null,null,null,null,null,null,null,null,"Qualitätsindikator"]
["Jungwuchs-, Dickungs- und Stangenholzpflege (bis zu einem BHDdom von 20 cm) in Beständen der Entwicklungsstufen 100, 200 und 700",null,null,null,null,"Die Betriebseinheit führt die folgenden Arbeiten aus:\n•\tDefinieren/überprüfen des Bestockungsziels,\n•\tWaldbauliche Analyse durchführen und entscheiden, während der Periode einzugreifen oder nicht, um den Bestand in Richtung des Bestockungsziels zu lenken,\n•\tMassnahmen in den Jungwaldbeständen, die eine Pflege benötigen, ausführen.\n•\tNächsten Besuch/Massnahme planen.\nDiese Arbeiten werden in den folgenden Beständen ausgeführt: :\n•\tin allen neuen Flächen der Entwicklungsstufen 100, 200 und 700,\n•\tin allen Beständen der Entwicklungsstufen 100, 200 und 700, in denen ein Besuch/Eingriff während der Periode geplant ist,\n•\tin allen Beständen der Entwicklungsstufen 100, 200 und 700, in denen kein Besuch/Eingriff während der Periode geplant ist, aber in denen ein Ereignis oder die Entwicklung einen Besuch/Eingriff notwendig macht.\nDie Fläche, die während der Periode gepflegt werden muss (unabhängig von der Pflegeintensität) beträgt minimal:",null,null,null,null,null,null,null,null,"Die Anforderungen des naturnahen Waldbaus gemäss der Weisung des WNA werden eingehalten."]
[null,null,null,null,null,null,null,"ha ausserhalb des Schutzwaldes  (GF-S) ;"]
[null,null,null,null,null,null,null,"ha im Schutzwald  (FP-J)."]
[]
["BEITRÄGE DES KANTONS"]
["Damit das Ziel erreicht werden kann, verpflichtet sich der Kanton die folgenden Beiträge (inklusiv Steuern und Abgaben) auszubezahlen."]
["Ziel: Jungwaldpflege",null,null,null,null,null,null,null,null,null,"Fläche (ha)",null,null,"Pauschalbeiträge (Fr./ha)",null,null,"Beitrag für 4 Jahre  (Fr.)"]
["Region Mittelland, Bestände der Entwicklungsstufen 100 und 200 ausserhalb Schutzwald",null,null,null,null,null,null,null,null,null,{"$f":"L8","v":0},null,null,1000,null,null,{"$f":"IF(ISBLANK(K24), \"\", K24*N24)","v":0}]
["Flysch- und Kalkgebiete, Bestände der Entwicklungsstufen 100 und 200 ausserhalb Schutzwald",null,null,null,null,null,null,null,null,null,{"$f":"L9","v":0},null,null,700,null,null,{"$f":"IF(ISBLANK(K25), \"\", K25*N25)","v":0}]
["Regionen Mittelland, Flysch- und Kalkgebiete, Bestände der Entwicklungsstufe 700 ausserhalb Schutzwald",null,null,null,null,null,null,null,null,null,{"$f":"L10","v":0},null,null,300,null,null,0]
["Total ausserhalb Schutzwald  (GF-S)",null,null,null,null,null,null,null,null,null,null,null,null,null,null,null,{"$f":"SUM(Q24:S26)","v":0}]
["Region Mittelland, Bestände der Entwicklungsstufen 100 und 200 im Schutzwald",null,null,null,null,null,null,null,null,null,{"$f":"P8","v":0},null,null,1000,null,null,{"$f":"IF(ISBLANK(K28), \"\", K28*N28)","v":0}]
["Flysch- und Kalkgebiete, Bestände der Entwicklungsstufen 100 und 200 im Schutzwald",null,null,null,null,null,null,null,null,null,{"$f":"P9","v":0},null,null,700,null,null,{"$f":"IF(ISBLANK(K29), \"\", K29*N29)","v":0}]
["Regionen Mittelland, Flysch- und Kalkgebiete, Bestände der Entwicklungsstufe 700 im Schutzwald",null,null,null,null,null,null,null,null,null,{"$f":"P10","v":0},null,null,300,null,null,0]
["Total im Schutzwald (FP-J)",null,null,null,null,null,null,null,null,null,null,null,null,null,null,null,{"$f":"SUM(Q28:S30)","v":0}]
[null,null,null,null,null,null,null,null,null,null,null,null,null,null,"Total",null,{"$f":"Q27+Q31","v":0}]
["Die Restkosten des Vertrages gehen zu Lasten der Betriebseinheit."]
[]
["ZAHLUNGSBEDINGUNGEN"]
["Die Kantonsbeiträge werden nach der Genehmigung der Jahresabrechnung und unter Vorbehalt der Genehmigung der budgetierten Kredite durch den Staat, gemäss folgenden Terminen ausbezahlt:"]
[]
[null,"Année",null,null,null,"Montant (Fr.)"]
[null,2026,null,null,null,{"$f":"$Q$32/4","v":0}]
[null,{"$f":"B39+1","v":2027},null,null,null,{"$f":"$Q$32/4","v":0}]
[null,{"$f":"B40+1","v":2028},null,null,null,{"$f":"$Q$32/4","v":0}]
[null,2029,null,null,null,{"$f":"$Q$32/4","v":0}]
[]
[]
["INKRAFTTRETEN DES VERTRAGES"]
["Der von beiden Parteien rechtskräftig unterschriebene Vertrag tritt rückwirkend auf den 1. Januar 2025 in Kraft."]
[]
["RECHTSMITTEL"]
["Die Vertragsparteien verpflichten sich, Meinungsverschiedenheiten und Streitpunkte in partnerschaftlicher Zusammenarbeit zu lösen. Die Rechtsmittel richten sich nach den Bestimmungen des Artikels 121, Abs. 2 Buchstabe b des VRG (Gesetz über die Verwaltungsrechtspflege): Klagen müssen bei der verwaltungsrechtlichen Abteilung des Kantonsgerichts erhoben werden."]
[]
["Verteilung: WNA (Original), Forstkreis für sich (1 Kopie) und zur Weiterleitung an die Betriebseinheit (2 Kopien)"]

{"sheet":"Soins - Annexe","index":12,"n_rows":22,"n_cols":16,"rows_kept":22,"cut":false,"hidden":true,"merged":[[21,0,21,18],[8,0,8,1],[9,11,9,12],[8,11,8,12],[9,13,9,14],[8,13,8,14],[14,0,14,18],[15,0,15,18],[17,0,17,6],[17,7,17,10],[18,0,18,18],[20,0,20,18],[8,4,8,10],[9,4,9,10],[12,11,12,12],[12,13,12,14],[5,15,5,18],[6,0,6,1],[0,0,0,18],[4,0,4,18],[5,0,5,1],[5,11,5,12],[5,13,5,14],[1,0,1,18],[2,0,2,18],[5,2,5,3],[6,13,6,14],[6,11,6,12],[5,4,5,10],[6,4,6,10],[6,15,6,18],[6,2,6,3],[7,4,7,10],[12,0,12,10],[9,2,9,3],[8,2,8,3],[7,2,7,3],[12,15,12,18],[9,15,9,18],[8,15,8,18],[7,15,7,18],[9,0,9,1],[7,0,7,1],[11,11,11,12],[11,13,11,14],[10,13,10,14],[10,11,10,12],[10,0,10,10],[11,0,11,10],[11,15,11,18],[10,15,10,18],[7,13,7,14],[7,11,7,12]]}
[]
["Anlage zum Gesuch"]
["Jungwaldpflege (GF-S / FP-J)"]
[]
["WALDBAULICHE PLANUNG"]
["Bestandes-Nr.",null,"Grund",null,"Pflegeziel (Baumarten, %, Mischungsform)",null,null,null,null,null,null,"Fläche (ha)",null,"Pauschale (Fr./ha)",null,"Geschätzte Subvention (Fr.)"]
[null,null,null,null,null,null,null,null,null,null,null,null,null,2000,null,{"$f":"IF(ISBLANK(L7), \"\", L7*N7)","v":""}]
[null,null,null,null,null,null,null,null,null,null,null,null,null,2000,null,{"$f":"IF(ISBLANK(L8), \"\", L8*N8)","v":""}]
[null,null,"GF-S",null,"Aesungsfläche",null,null,null,null,null,null,null,null,4000,null,""]
[null,null,"GF-S",null,"Pflege von Versuchspflanzungen",null,null,null,null,null,null,null,null,10000,null,""]
["Total GF-S",null,null,null,null,null,null,null,null,null,null,{"$f":"SUMIF(C7:D10, \"=GF-S\", L7:M10)","v":0},null,null,null,{"$f":"SUMIF(C7:D10, \"=GF-S\", P7:S10)","v":0}]
["Total FP-J",null,null,null,null,null,null,null,null,null,null,{"$f":"SUMIF(C7:D10, \"=FP-J\", L7:M10)","v":0},null,null,null,{"$f":"SUMIF(C7:D10, \"=FP-J\", P7:S10)","v":0}]
["Total",null,null,null,null,null,null,null,null,null,null,{"$f":"SUM(L11:M12)","v":0},null,null,null,{"$f":"SUM(P11:S12)","v":0}]
[]
["BESCHREIBUNG DER AUSZUFÜHRENDEN ARBEITEN"]
[]
[]
["AUSFÜHRUNGSTERMIN DER ARBEITEN"]
["Der Waldbesitzer wird darauf hingewiesen, dass er das Unternehmen, das die Arbeiten durchführen soll, selber wählen kann. Das Unternehmen muss die Bedingungen für die Arbeitssicherheit erfüllen (auch bei Betrieben im Nebenerwerb)."]
[]
["KONTROLLE UND AUSZAHLUNG DER SUBVENTION"]
["Die Auszahlung der Subvention erfolgt nach der Durchführung und Kontrolle der Arbeiten. Die Vertreter des WNA sorgen dafür, dass die festgelegten Bedingungen eingehalten werden. Die Höhe der Subvention wird bei der Abrechnung festgelegt und dann bis zum Ende des Jahres im Rahmen der verfügbaren Mittel ausgezahlt."]

{"sheet":"Soins - Décompte","index":13,"n_rows":35,"n_cols":17,"rows_kept":35,"cut":false,"hidden":true,"merged":[[5,16,5,18],[6,16,6,18],[5,13,5,15],[6,10,6,12],[5,10,5,12],[5,7,5,9],[6,7,6,9],[7,7,7,9],[6,13,6,15],[5,0,5,6],[6,0,6,6],[11,0,11,18],[7,0,7,6],[8,0,8,6],[10,0,10,18],[7,16,7,18],[8,16,8,18],[8,13,8,15],[7,13,7,15],[8,7,8,9],[8,10,8,12],[7,10,7,12],[0,0,0,18],[4,16,4,18],[4,13,4,15],[4,10,4,12],[4,7,4,9],[1,0,1,18],[2,0,2,18],[4,0,4,2],[4,3,4,6],[30,11,30,14],[31,11,31,14],[34,0,34,18],[35,0,35,18],[22,2,22,7],[22,13,22,18],[25,0,25,18],[28,11,28,14],[29,4,29,7],[29,11,29,14]]}
[]
["Abrechnung der Subvention"]
["Jungwaldpflege (GF-S / FP-J)"]
[]
["Abrechnungs-Nr :",null,null,null,null,null,null,"Ausserhalb Schutzwald \nGF-S (ha)",null,null,"Im Schutzwald \nFP-J (ha)",null,null,"Pauschale (Fr./ha)",null,null,"Subvention (Fr.)"]
["Jungwaldpflege GF-S",null,null,null,null,null,null,null,null,null,null,null,null,2000,null,null,{"$f":"IF(ISBLANK(H6), \"\", H6*N6)","v":""}]
["Jungwaldpflege FP-J",null,null,null,null,null,null,null,null,null,null,null,null,2000,null,null,{"$f":"IF(ISBLANK(K7), \"\", K7*N7)","v":""}]
["Aesungsfläche",null,null,null,null,null,null,null,null,null,null,null,null,4000,null,null,{"$f":"IF(ISBLANK(H8), \"\", H8*N8)","v":""}]
["Pflege von Versuchspflanzungen",null,null,null,null,null,null,null,null,null,null,null,null,10000,null,null,{"$f":"IF(ISBLANK(H9), \"\", H9*N9)","v":""}]
[]
["MASSNAHMENNUMMER"]
[]
[]
["KONFORMITÄTSERKLÄRUNG DER AUSGEFÜHRTEN ARBEITEN UND AUSZAHLUNGSANTRAG"]
["Die Unterzeichneten bestätigen, dass:"]
[]
[null,"die Arbeiten gemäss dem Vertrag und dem genehmigten Projekt erfolgt sind.                                       "]
[]
[null,"die Qualitätsanforderungen betreffend Umweltverträglichkeit bei der Ausführung der Arbeiten erfüllt sind."]
[]
["Die Trägerschaft kann im Falle von Kontrollen die Originalbelege jederzeit beibringen."]
[]
["Ort, Datum",null,null,null,null,null,null,null,null,null,"Die Trägerschaft"]
[]
[]
["AUSZAHLUNG DER SUBVENTION (vom WNA auszufüllen)"]
["Das WNA genehmigt die vorliegende Abrechnung und die Auszahlung der Subvention:"]
[]
[null,"Total der Subventionen",null,null,null,null,null,null,null,null,"Frs."]
[null,"./. Akonto ED vom:",null,null,null,null,null,null,null,null,"Frs."]
[null,"Zu zahlender Restbetrag:",null,null,null,null,null,null,null,null,"Frs."]
[null,"Bundesanteil:",null,null,null,null,null,null,null,null,"Frs."]
[]
[]
["BEMERKUNGEN"]

{"sheet":"Plantation EI - Annexe","index":14,"n_rows":27,"n_cols":17,"rows_kept":27,"cut":false,"hidden":true,"merged":[[10,2,10,6],[26,0,26,18],[19,0,19,18],[20,0,20,18],[22,0,22,6],[22,7,22,10],[23,0,23,18],[25,0,25,18],[10,7,10,9],[11,2,11,6],[11,7,11,9],[10,16,10,18],[11,0,11,1],[11,16,11,18],[10,10,10,12],[10,13,10,15],[0,0,0,18],[4,0,4,18],[6,0,6,1],[6,16,6,18],[5,0,5,1],[5,10,5,12],[5,13,5,15],[5,16,5,18],[6,13,6,15],[6,10,6,12],[1,0,1,18],[2,0,2,18],[6,2,6,6],[16,0,16,18],[17,0,17,18],[14,0,14,18],[13,0,13,18],[7,16,7,18],[8,10,8,12],[8,13,8,15],[8,16,8,18],[7,0,7,1],[8,0,8,1],[7,10,7,12],[7,13,7,15],[9,0,9,1],[10,0,10,1],[11,10,11,12],[11,13,11,15],[9,16,9,18],[9,10,9,12],[9,13,9,15],[5,2,5,6],[5,7,5,9],[6,7,6,9],[7,2,7,6],[7,7,7,9],[8,2,8,6],[8,7,8,9],[9,2,9,6],[9,7,9,9]]}
[]
["Anlage zum Gesuch"]
["Pflanzung von einheimischen Arten und Pflanzung von einheimischen Arten mit exotischen Arten (GF-S)"]
[]
["WALDBAULICHE PLANUNG"]
["Bestandes-Nr.",null,"Pflegeziel (Baumarten, %, Mischungsform)",null,null,null,null,"Fläche (ha)\nPflanzung von einheimischen Arten",null,null,"Fläche (ha)\nPflanzung von einheimischen Arten mit exotischen Arten",null,null,"Pauschale (Fr./ha)",null,null,"Geschätzte Subvention (Fr.)"]
[null,null,null,null,null,null,null,null,null,null,null,null,null,12000,null,null,{"$f":"IF(AND(ISBLANK(H7), ISBLANK(K7)), \"\", H7*N7+K7*N7)","v":""}]
[null,null,null,null,null,null,null,null,null,null,null,null,null,12000,null,null,{"$f":"IF(AND(ISBLANK(H8), ISBLANK(K8)), \"\", H8*N8+K8*N8)","v":""}]
[null,null,null,null,null,null,null,null,null,null,null,null,null,12000,null,null,{"$f":"IF(AND(ISBLANK(H9), ISBLANK(K9)), \"\", H9*N9+K9*N9)","v":""}]
[null,null,null,null,null,null,null,null,null,null,null,null,null,12000,null,null,""]
[null,null,null,null,null,null,null,null,null,null,null,null,null,12000,null,null,""]
["Total",null,null,null,null,null,null,{"$f":"SUM(H7:J11)","v":0},null,null,{"$f":"SUM(K7:M11)","v":0},null,null,null,null,null,{"$f":"SUM(Q7:S11)","v":0}]
[]
["EXOTISCHE BAUMARTEN, HERKUNFT UND BEGRÜNDUNG"]
[]
[]
["HEIMISCHE BAUMARTEN, HERKÜNFTE, BEMERKUNGEN"]
[]
[]
["BESCHREIBUNG DER AUSZUFÜHRENDEN ARBEITEN"]
[]
[]
["AUSFÜHRUNGSTERMIN DER ARBEITEN"]
["Der Waldbesitzer wird darauf hingewiesen, dass er das Unternehmen, das die Arbeiten durchführen soll, selber wählen kann. Das Unternehmen muss die Bedingungen für die Arbeitssicherheit erfüllen (auch bei Betrieben im Nebenerwerb)."]
[]
["KONTROLLE UND AUSZAHLUNG DER SUBVENTION"]
["Die Auszahlung der Subvention erfolgt nach der Durchführung und Kontrolle der Arbeiten. Die Vertreter des WNA sorgen dafür, dass die festgelegten Bedingungen eingehalten werden. Die Höhe der Subvention wird bei der Abrechnung festgelegt und dann bis zum Ende des Jahres im Rahmen der verfügbaren Mittel ausgezahlt."]

{"sheet":"Plantation EI - Décompte","index":15,"n_rows":33,"n_cols":16,"rows_kept":33,"cut":false,"hidden":true,"merged":[[6,11,6,14],[6,15,6,18],[9,0,9,18],[8,0,8,18],[0,0,0,18],[4,7,4,10],[4,11,4,14],[4,15,4,18],[1,0,1,18],[2,0,2,18],[4,0,4,2],[4,3,4,6],[5,0,5,6],[5,7,5,10],[5,11,5,14],[5,15,5,18],[6,0,6,6],[6,7,6,10],[28,11,28,14],[29,11,29,14],[32,0,32,18],[33,0,33,18],[20,2,20,7],[20,13,20,18],[23,0,23,18],[26,11,26,14],[27,4,27,7],[27,11,27,14]]}
[]
["Abrechnung der Subvention"]
["Pflanzung von einheimischen Arten und Pflanzung von einheimischen Arten mit exotischen Arten (GF-S)"]
[]
["Abrechnungs-Nr :",null,null,null,null,null,null,"Fläche (ha)",null,null,null,"Pauschale (Fr./ha)",null,null,null,"Subvention (Fr.)"]
["Pflanzung von einheimischen Arten",null,null,null,null,null,null,null,null,null,null,12000,null,null,null,{"$f":"IF(ISBLANK(H6), \"\", H6*L6)","v":""}]
["Pflanzung von einheimischen Arten mit exotischen Arten",null,null,null,null,null,null,null,null,null,null,12000,null,null,null,{"$f":"IF(ISBLANK(H7), \"\", H7*L7)","v":""}]
[]
["MASSNAHMENNUMMER"]
[]
[]
["KONFORMITÄTSERKLÄRUNG DER AUSGEFÜHRTEN ARBEITEN UND AUSZAHLUNGSANTRAG"]
["Die Unterzeichneten bestätigen, dass:"]
[]
[null,"die Arbeiten gemäss dem Vertrag und dem genehmigten Projekt erfolgt sind.                                       "]
[]
[null,"die Qualitätsanforderungen betreffend Umweltverträglichkeit bei der Ausführung der Arbeiten erfüllt sind."]
[]
["Die Trägerschaft kann im Falle von Kontrollen die Originalbelege jederzeit beibringen."]
[]
["Ort, Datum",null,null,null,null,null,null,null,null,null,"Die Trägerschaft"]
[]
[]
["AUSZAHLUNG DER SUBVENTION (vom WNA auszufüllen)"]
["Das WNA genehmigt die vorliegende Abrechnung und die Auszahlung der Subvention:"]
[]
[null,"Total der Subventionen",null,null,null,null,null,null,null,null,"Frs."]
[null,"./. Akonto ED vom:",null,null,null,null,null,null,null,null,"Frs."]
[null,"Zu zahlender Restbetrag:",null,null,null,null,null,null,null,null,"Frs."]
[null,"Bundesanteil:",null,null,null,null,null,null,null,null,"Frs."]
[]
[]
["BEMERKUNGEN"]

{"sheet":"Plantation - Annexe","index":16,"n_rows":21,"n_cols":17,"rows_kept":21,"cut":false,"hidden":true,"merged":[[20,0,20,18],[16,0,16,6],[16,7,16,10],[10,0,10,1],[10,12,10,13],[10,16,10,18],[11,16,11,18],[11,12,11,13],[11,0,11,1],[13,0,13,18],[14,0,14,18],[0,0,0,18],[4,0,4,18],[7,16,7,18],[5,12,5,13],[5,16,5,18],[5,0,5,1],[6,16,6,18],[6,12,6,13],[6,0,6,1],[7,0,7,1],[7,12,7,13],[1,0,1,18],[2,0,2,18],[5,14,5,15],[6,14,6,15],[7,14,7,15],[8,0,8,1],[9,0,9,1],[8,12,8,13],[9,12,9,13],[19,0,19,18],[17,0,17,18],[8,16,8,18],[9,16,9,18],[11,2,11,11],[10,2,10,11],[8,14,8,15],[9,14,9,15],[10,14,10,15],[11,14,11,15],[5,2,5,11],[6,2,6,11],[7,2,7,11],[8,2,8,11],[9,2,9,11]]}
[]
["Anlage zum Gesuch"]
["Anreicherungs- oder Ergänzungspflanzung (PC-a)"]
[]
["WALDBAULICHE PLANUNG"]
["Bestandes-Nr.",null,"Anreicherungs- oder Ergänzungspflanzung (min 500 Pflanzen/ha)\nBaumarten, Anzahl der Pflanzen, Abstand",null,null,null,null,null,null,null,null,null,"Fläche (ha)",null,"Pauschale (Fr./ha)",null,"Geschätzte Subvention (Fr.)"]
[null,null,null,null,null,null,null,null,null,null,null,null,null,null,4000,null,{"$f":"IF(ISBLANK(M7), \"\", M7*O7)","v":""}]
[null,null,null,null,null,null,null,null,null,null,null,null,null,null,4000,null,{"$f":"IF(ISBLANK(M8), \"\", M8*O8)","v":""}]
[null,null,null,null,null,null,null,null,null,null,null,null,null,null,4000,null,""]
[null,null,null,null,null,null,null,null,null,null,null,null,null,null,4000,null,""]
[null,null,null,null,null,null,null,null,null,null,null,null,null,null,4000,null,{"$f":"IF(ISBLANK(M11), \"\", M11*O11)","v":""}]
["Total",null,null,null,null,null,null,null,null,null,null,null,{"$f":"SUM(M7:N11)","v":0},null,null,null,{"$f":"SUM(Q7:S11)","v":0}]
[]
["BESCHREIBUNG DER AUSZUFÜHRENDEN ARBEITEN"]
[]
[]
["AUSFÜHRUNGSTERMIN DER ARBEITEN"]
["Der Waldbesitzer wird darauf hingewiesen, dass er das Unternehmen, das die Arbeiten durchführen soll, selber wählen kann. Das Unternehmen muss die Bedingungen für die Arbeitssicherheit erfüllen (auch bei Betrieben im Nebenerwerb)."]
[]
["KONTROLLE UND AUSZAHLUNG DER SUBVENTION"]
["Die Auszahlung der Subvention erfolgt nach der Durchführung und Kontrolle der Arbeiten. Die Vertreter des WNA sorgen dafür, dass die festgelegten Bedingungen eingehalten werden. Die Höhe der Subvention wird bei der Abrechnung festgelegt und dann bis zum Ende des Jahres im Rahmen der verfügbaren Mittel ausgezahlt."]

{"sheet":"Plantation - Décompte","index":17,"n_rows":32,"n_cols":16,"rows_kept":32,"cut":false,"hidden":true,"merged":[[8,0,8,18],[7,0,7,18],[0,0,0,18],[5,7,5,10],[1,0,1,18],[2,0,2,18],[4,0,4,2],[4,3,4,6],[4,15,4,18],[4,11,4,14],[4,7,4,10],[5,0,5,6],[5,11,5,14],[5,15,5,18],[27,11,27,14],[28,11,28,14],[31,0,31,18],[32,0,32,18],[19,2,19,7],[19,13,19,18],[22,0,22,18],[25,11,25,14],[26,4,26,7],[26,11,26,14]]}
[]
["Abrechnung der Subvention"]
["Anreicherungs- oder Ergänzungspflanzung (PC-a)"]
[]
["Abrechnungs-Nr ",null,null,null,null,null,null,"Fläche (ha)",null,null,null,"Fr./ha",null,null,null,"Subvention (Fr.)"]
["PFlanzung PC-a",null,null,null,null,null,null,null,null,null,null,4000,null,null,null,{"$f":"IF(ISBLANK(H6), \"\", H6*L6)","v":""}]
[]
["MASSNAHMENNUMMER"]
[]
[]
["KONFORMITÄTSERKLÄRUNG DER AUSGEFÜHRTEN ARBEITEN UND AUSZAHLUNGSANTRAG"]
["Die Unterzeichneten bestätigen, dass:"]
[]
[null,"die Arbeiten gemäss dem Vertrag und dem genehmigten Projekt erfolgt sind.                                       "]
[]
[null,"die Qualitätsanforderungen betreffend Umweltverträglichkeit bei der Ausführung der Arbeiten erfüllt sind."]
[]
["Die Trägerschaft kann im Falle von Kontrollen die Originalbelege jederzeit beibringen."]
[]
["Ort, Datum",null,null,null,null,null,null,null,null,null,"Die Trägerschaft"]
[]
[]
["AUSZAHLUNG DER SUBVENTION (vom WNA auszufüllen)"]
["Das WNA genehmigt die vorliegende Abrechnung und die Auszahlung der Subvention:"]
[]
[null,"Total der Subventionen",null,null,null,null,null,null,null,null,"Frs."]
[null,"./. Akonto ED vom:",null,null,null,null,null,null,null,null,"Frs."]
[null,"Zu zahlender Restbetrag:",null,null,null,null,null,null,null,null,"Frs."]
[null,"Bundesanteil:",null,null,null,null,null,null,null,null,"Frs."]
[]
[]
["BEMERKUNGEN"]

{"sheet":"Régénération - Annexe","index":18,"n_rows":44,"n_cols":18,"rows_kept":44,"cut":false,"hidden":true,"merged":[[25,0,25,4],[24,0,24,4],[31,5,31,7],[38,0,38,7],[38,8,38,11],[32,5,32,7],[35,5,35,6],[36,7,36,10],[25,5,25,7],[24,5,24,7],[26,0,26,4],[23,5,23,7],[36,14,36,17],[35,14,35,17],[35,7,35,10],[35,12,35,13],[26,5,26,7],[26,9,26,18],[42,0,42,18],[43,0,43,18],[29,5,29,7],[28,5,28,7],[27,5,27,7],[29,0,29,4],[28,0,28,4],[27,0,27,4],[29,9,29,18],[32,0,32,4],[31,10,31,13],[31,14,31,17],[32,10,32,13],[32,14,32,17],[36,5,36,6],[36,12,36,13],[0,0,0,18],[4,0,4,18],[7,5,7,18],[1,0,1,18],[2,0,2,18],[40,0,40,18],[11,5,11,6],[5,9,5,18],[9,9,9,18],[21,0,21,18],[13,9,13,11],[15,14,15,16],[14,14,14,16],[13,14,13,16],[19,0,19,18],[23,0,23,4],[28,9,28,18],[25,9,25,18],[24,9,24,18],[23,9,23,18],[27,9,27,18]]}
[]
["Anlage zum Gesuch"]
["Defizitären Verjüngungsschlag im Wald (PC-a)"]
[]
["WALDBAULICHE PLANUNG"]
["Zu verjüngender Bestand:",null,null,null,null,null,null,null,"Baumarten, % , Mischungsform:"]
[]
["Art des Verjüngungsschlages:"]
[]
["Waldbauliches Ziel:",null,null,null,null,null,null,null,"Baumarten, % , Mischungsform:"]
[]
["Fläche des Holzschlages:",null,null,null,null,null,null,"ha"]
[]
["Holzvolumen gem. Anzeichnung oder Schlagbewilligung vom",null,null,null,null,null,null,null,null,null,null,null,null,null,null,null,null,"m3"]
["Im Bestand zu belassenes Holzvolumen",null,null,null,null,null,null,null,null,null,null,null,null,null,null,null,null,"m3"]
["Zu rückendes Holzvolumen",null,null,null,null,null,null,null,null,null,null,null,null,null,{"$f":"O14-O15","v":0},null,null,"m3"]
[]
["Bemerkungen zur Planung:"]
[]
[]
[]
["SUBVENTION"]
["Massgebende Pauschalsubvention"]
[null,null,null,null,null,"Pauschale (Fr./m3)",null,null,null,"Erklärung zum Betrag pro m3"]
["Fällen und Aufrüsten der Bäume"]
["Rücken der Bäume"]
["Verwaltungskosten (Privatwälder) "]
["Gesamtkosten",null,null,null,null,{"$f":"SUM(F25:H27)","v":0}]
["Holzwert "]
["Pauschalergebnis",null,null,null,null,{"$f":"F28-F29","v":0}]
[]
[null,null,null,null,null,"(Fr./m3)",null,null,null,null,"geschätzter Betrag (Fr.)",null,null,null," Analyt. Rubrik"]
["Kantonale Subvention ",null,null,null,null,{"$f":"_xlfn.CEILING.MATH(F30,5)","v":0},null,null,null,null,{"$f":"O14*F33","v":0},null,null,null,"SFOR-F-PC-a"]
["von 5 bis 90 Fr/m3, in 5-Fr/m3-Schritten"]
[]
[null,null,null,null,null,"Jahr",null,"Subvention (Fr.)",null,null,null,null,"Jahr",null,"Subvention (Fr.)"]
["Verteilung auf zwei Jahre"]
[]
["Termin für die Einreichung der Schlussabrechnung"]
[]
["Der Waldbesitzer wird darauf hingewiesen, dass er das Unternehmen, das die Arbeiten durchführen soll, selber wählen kann. Das Unternehmen muss die Bedingungen für die Arbeitssicherheit erfüllen (auch bei Betrieben im Nebenerwerb)."]
[]
["KONTROLLE UND AUSZAHLUNG DER SUBVENTION"]
["Die Auszahlung der Subvention erfolgt nach der Durchführung und Kontrolle der Arbeiten. Die Vertreter des WNA sorgen dafür, dass die festgelegten Bedingungen eingehalten werden. Die Höhe der Subvention wird bei der Abrechnung festgelegt und dann bis zum Ende des Jahres im Rahmen der verfügbaren Mittel ausgezahlt."]

{"sheet":"Régénération - Décompte","index":19,"n_rows":37,"n_cols":16,"rows_kept":37,"cut":false,"hidden":true,"merged":[[13,0,13,18],[12,0,12,18],[10,9,10,12],[10,15,10,18],[8,13,8,14],[9,13,9,14],[10,13,10,14],[9,15,9,16],[9,17,9,18],[8,17,8,18],[8,15,8,16],[0,0,0,18],[5,0,5,3],[5,13,5,16],[4,13,4,16],[5,7,5,10],[4,7,4,10],[1,0,1,18],[2,0,2,18],[4,0,4,3],[6,7,6,8],[7,0,7,6],[9,9,9,10],[9,11,9,12],[8,11,8,12],[8,9,8,10],[7,7,7,8],[9,0,9,6],[8,0,8,6],[6,17,6,18],[7,15,7,16],[7,17,7,18],[24,2,24,7],[24,13,24,18],[7,13,7,14],[6,15,6,16],[6,13,6,14],[7,9,7,10],[7,11,7,12],[6,11,6,12],[10,7,10,8],[10,0,10,6],[8,7,8,8],[9,7,9,8],[6,9,6,10],[33,11,33,14],[36,0,36,18],[37,0,37,18],[27,0,27,18],[30,11,30,14],[31,4,31,7],[31,11,31,14],[32,11,32,14]]}
[]
["Abrechnung der Subvention"]
["Defizitären Verjüngungsschlag im Wald (PC-a)"]
[]
["Jahr :"]
["Abrechnungs-Nr :"]
[null,null,null,null,null,null,null,"Einheit",null,"Menge",null,null,null,"Einheit",null,"Menge"]
["Fläche des Holzschlages",null,null,null,null,null,null,"ha",null,null,null,null,null,"ha"]
["Genutztes Holzvolumen",null,null,null,null,null,null,"m3",null,null,null,null,null,"m3"]
["Genehmigte Pauschalsubvention",null,null,null,null,null,null,"Fr./m3",null,{"$f":"'Régénération - Annexe'!F33","v":0},null,null,null,"Fr./m3",null,{"$f":"'Régénération - Annexe'!F33","v":0}]
["Betrag der kantonalen Subvention",null,null,null,null,null,null,"Fr.",null,{"$f":"J9*J10","v":0},null,null,null,"Fr.",null,{"$f":"P9*P10","v":0}]
[]
["MASSNAHMENNUMMER"]
[]
[]
["KONFORMITÄTSERKLÄRUNG DER AUSGEFÜHRTEN ARBEITEN UND AUSZAHLUNGSANTRAG"]
["Die Unterzeichneten bestätigen, dass:"]
[]
[null,"die Arbeiten gemäss dem Vertrag und dem genehmigten Projekt erfolgt sind.                                       "]
[]
[null,"die Qualitätsanforderungen betreffend Umweltverträglichkeit bei der Ausführung der Arbeiten erfüllt sind."]
[]
["Die Trägerschaft kann im Falle von Kontrollen die Originalbelege jederzeit beibringen."]
[]
["Ort, Datum",null,null,null,null,null,null,null,null,null,"Die Trägerschaft"]
[]
[]
["AUSZAHLUNG DER SUBVENTION (vom WNA auszufüllen)"]
["Das WNA genehmigt die vorliegende Abrechnung und die Auszahlung der Subvention:"]
[]
[null,"Total der Subventionen",null,null,null,null,null,null,null,null,"Frs."]
[null,"./. Akonto ED vom:",null,null,null,null,null,null,null,null,"Frs."]
[null,"Zu zahlender Restbetrag:",null,null,null,null,null,null,null,null,"Frs."]
[null,"Bundesanteil:",null,null,null,null,null,null,null,null,"Frs."]
[]
[]
["BEMERKUNGEN"]

{"sheet":"Régénération CC - Annexe","index":20,"n_rows":22,"n_cols":14,"rows_kept":22,"cut":false,"hidden":true,"merged":[[0,0,0,18],[12,5,12,7],[12,8,12,18],[10,5,10,7],[11,5,11,7],[11,8,11,18],[12,0,12,4],[11,0,11,4],[10,0,10,4],[9,0,9,4],[8,0,8,4],[10,8,10,18],[6,0,6,4],[5,5,5,7],[5,0,5,4],[7,0,7,4],[20,0,20,18],[15,0,15,1],[15,2,15,4],[15,5,15,6],[15,10,15,12],[16,0,16,18],[15,7,15,9],[21,0,21,18],[14,0,14,18],[1,0,1,18],[2,0,2,18],[4,0,4,18],[18,0,18,6],[18,7,18,10],[5,8,5,18],[6,8,6,18],[7,8,7,18],[8,8,8,18],[9,8,9,18],[6,5,6,7],[7,5,7,7],[8,5,8,7],[9,5,9,7]]}
[]
["Anlage zum Gesuch"]
["Schlag zur Regeneration von Beständen, die dem Klimawandel nicht angepasst sind (FP-D)"]
[]
["PROJEKTIERTE ARBEITEN"]
[null,null,null,null,null,"Pauschale (Fr./m3)",null,null,"Erklärung zum Betrag pro m3"]
["Fällen und Aufrüsten der Bäume"]
["Rücken der Bäume"]
["Sclageinigung und Instandsetzung"]
["Sonstige Kosten"]
["Gesamtkosten",null,null,null,null,{"$f":"SUM(F7:H10)","v":0}]
["Holzwert"]
["Pauschales Ergebnis",null,null,null,null,{"$f":"F11-F12","v":0}]
[]
["SUBVENTION"]
[null,null,"m3 zu einer Pauschale von ",null,null,{"$f":"ROUND(F13, 0)","v":0},null,"Franken/m3 =",null,null,{"$f":"IF(OR(ISBLANK(A16), ISBLANK(F16)), \"\", A16*F16)","v":""},null,null,"Franken Subvention"]
["Der Waldbesitzer wird darauf hingewiesen, dass er das Unternehmen, das die Arbeiten durchführen soll, selber wählen kann. Das Unternehmen muss die Bedingungen für die Arbeitssicherheit erfüllen (auch bei Betrieben im Nebenerwerb)."]
[]
["AUSFÜHRUNGSTERMIN DER ARBEITEN"]
[]
["KONTROLLE UND AUSZAHLUNG DER SUBVENTION"]
["Die Auszahlung der Subvention erfolgt nach der Durchführung und Kontrolle der Arbeiten. Die Vertreter des WNA sorgen dafür, dass die festgelegten Bedingungen eingehalten werden. Die Höhe der Subvention wird bei der Abrechnung festgelegt und dann bis zum Ende des Jahres im Rahmen der verfügbaren Mittel ausgezahlt."]

{"sheet":"Régénération CC - Décompte","index":21,"n_rows":32,"n_cols":14,"rows_kept":32,"cut":false,"hidden":true,"merged":[[0,0,0,18],[4,0,4,2],[4,3,4,8],[4,9,4,12],[4,13,4,18],[1,0,1,18],[2,0,2,18],[8,0,8,8],[7,0,7,8],[6,0,6,8],[5,0,5,8],[8,13,8,18],[7,13,7,18],[6,13,6,18],[5,13,5,18],[8,9,8,12],[7,9,7,12],[6,9,6,12],[5,9,5,12],[27,11,27,14],[28,11,28,14],[31,0,31,18],[32,0,32,18],[19,2,19,7],[19,13,19,18],[22,0,22,18],[25,11,25,14],[26,4,26,7],[26,11,26,14]]}
[]
["Abrechnung der Subvention"]
["Schlag zur Regeneration von Beständen, die dem Klimawandel nicht angepasst sind (FP-D)"]
[]
["Abrechnungs-Nr :",null,null,null,null,null,null,null,null,"Einheit",null,null,null,"Menge"]
["Fläche des Holzschlages",null,null,null,null,null,null,null,null,"ha"]
["Genutztes Holzvolumen",null,null,null,null,null,null,null,null,"m3"]
["Genehmigte Pauschalsubvention für das Pojekt",null,null,null,null,null,null,null,null,"Fr./m3",null,null,null,{"$f":"'Régénération CC - Annexe'!F13","v":0}]
["Betrag der kantonalen Subvention",null,null,null,null,null,null,null,null,"Fr.",null,null,null,{"$f":"IF(ISBLANK(N7), \"\", N7*N8)","v":""}]
[]
["KONFORMITÄTSERKLÄRUNG DER AUSGEFÜHRTEN ARBEITEN UND AUSZAHLUNGSANTRAG"]
["Die Unterzeichneten bestätigen, dass:"]
[]
[null,"die Arbeiten gemäss dem Vertrag und dem genehmigten Projekt erfolgt sind.                                       "]
[]
[null,"die Qualitätsanforderungen betreffend Umweltverträglichkeit bei der Ausführung der Arbeiten erfüllt sind."]
[]
["Die Trägerschaft kann im Falle von Kontrollen die Originalbelege jederzeit beibringen."]
[]
["Ort, Datum",null,null,null,null,null,null,null,null,null,"Die Trägerschaft"]
[]
[]
["AUSZAHLUNG DER SUBVENTION (vom WNA auszufüllen)"]
["Das WNA genehmigt die vorliegende Abrechnung und die Auszahlung der Subvention:"]
[]
[null,"Total der Subventionen",null,null,null,null,null,null,null,null,"Frs."]
[null,"./. Akonto ED vom:",null,null,null,null,null,null,null,null,"Frs."]
[null,"Zu zahlender Restbetrag:",null,null,null,null,null,null,null,null,"Frs."]
[null,"Bundesanteil:",null,null,null,null,null,null,null,null,"Frs."]
[]
[]
["BEMERKUNGEN"]

{"sheet":"Exploitation - Annexe","index":22,"n_rows":27,"n_cols":14,"rows_kept":27,"cut":false,"hidden":true,"merged":[[17,0,17,18],[21,0,21,1],[0,0,0,18],[4,0,4,18],[16,0,16,18],[9,5,9,8],[9,10,9,14],[9,15,9,18],[10,0,10,4],[10,5,10,8],[10,10,10,14],[10,15,10,18],[11,0,11,4],[8,0,8,4],[8,5,8,8],[8,10,8,14],[8,15,8,18],[9,0,9,4],[1,0,1,18],[2,0,2,18],[5,15,5,18],[7,0,7,4],[7,5,7,8],[7,10,7,14],[7,15,7,18],[5,6,5,14],[13,0,13,4],[23,0,23,6],[23,7,23,10],[26,0,26,18],[11,5,11,8],[11,10,11,14],[11,15,11,18],[13,5,13,8],[13,12,13,18],[21,2,21,4],[21,5,21,6],[21,10,21,12],[25,0,25,18],[20,0,20,18],[21,7,21,9],[18,0,18,18]]}
[]
["Anlage zum Gesuch"]
["Nutzung von Schadholz  (FP-D)"]
[]
["LOKALISIERUNG UND BESCHREIBUNG DES SCHADENS"]
[null,null,null,null,null,null,"Bei mehreren Koordinaten ist Gruppe ForestMap Nr :"]
[]
["Geografische Koordinaten : ",null,null,null,null,null,null,null,null,null,"Geografische Koordinaten : "]
["Geografische Koordinaten : ",null,null,null,null,null,null,null,null,null,"Geografische Koordinaten : "]
["Geografische Koordinaten : ",null,null,null,null,null,null,null,null,null,"Geografische Koordinaten : "]
["Geografische Koordinaten : ",null,null,null,null,null,null,null,null,null,"Geografische Koordinaten : "]
["Geografische Koordinaten : ",null,null,null,null,null,null,null,null,null,"Geografische Koordinaten : "]
[]
["Auftretendatum der Schäden :",null,null,null,null,null,null,null,null,null,"Baumarten : "]
[]
[]
["PROJEKTIERTE ARBEITEN"]
[]
["Der Waldbesitzer wird darauf hingewiesen, dass er das Unternehmen für die auszuführenden Arbeiten, frei wählen kann. Das Unternehmen muss die Bedingungen für die Arbeitssicherheit erfüllen (auch bei Unternehmen im Nebenerwerb)."]
[]
["SCHÄTZUNG DER SUBVENTION"]
[null,null,"m3 zu einer Pauschale von",null,null,null,null,"Franken/m3 =",null,null,{"$f":"IF(OR(ISBLANK(A22), ISBLANK(F22)), \"\", A22*F22)","v":""},null,null,"Franken Subvention"]
[]
[" AUSFÜHRUNGSTERMIN DER ARBEITEN"]
[]
["KONTROLLE UND AUSZAHLUNG DER SUBVENTION"]
["Die Auszahlung der Subvention erfolgt nach der Ausführung und Kontrolle der Arbeiten. Die vom Amt für Wald und Natur bestimmten Personen sorgen für die Einhaltung der festgelegten Bedingungen. Der Subventionsbetrag wird mit der Abrechnung festgelegt und je nach verfügbaren Krediten bis Ende Jahr ausbezahlt."]

{"sheet":"Exploitation - Décompte","index":23,"n_rows":36,"n_cols":19,"rows_kept":36,"cut":false,"hidden":true,"merged":[[31,11,31,14],[32,11,32,14],[35,0,35,18],[36,0,36,18],[23,2,23,7],[23,13,23,18],[26,0,26,18],[29,11,29,14],[30,4,30,7],[30,11,30,14],[5,6,5,18],[6,6,6,7],[6,8,6,9],[6,10,6,11],[6,12,6,13],[6,14,6,15],[6,16,6,17],[0,0,0,18],[1,0,1,18],[2,0,2,18],[4,0,4,2],[4,3,4,6],[12,4,12,5],[5,0,6,1],[5,2,6,2],[5,3,6,3],[5,4,6,5],[11,4,11,5],[10,4,10,5],[9,4,9,5],[8,4,8,5],[7,4,7,5],[9,0,9,1],[8,0,8,1],[7,0,7,1],[12,0,12,1],[11,0,11,1],[10,0,10,1],[12,6,12,7],[7,8,7,9],[8,8,8,9],[9,8,9,9],[10,8,10,9],[11,8,11,9],[12,8,12,9],[7,6,7,7],[8,6,8,7],[9,6,9,7],[10,6,10,7],[11,6,11,7],[11,12,11,13],[12,12,12,13],[7,10,7,11],[8,10,8,11],[9,10,9,11],[10,10,10,11],[11,10,11,11],[12,10,12,11],[7,12,7,13],[8,12,8,13],[9,12,9,13],[10,12,10,13],[12,14,12,15],[7,16,7,17],[8,16,8,17],[9,16,9,17],[10,16,10,17],[11,16,11,17],[12,16,12,17],[7,14,7,15],[8,14,8,15],[9,14,9,15],[10,14,10,15],[11,14,11,15]]}
[]
["Abrechnung der Subvention"]
["Nutzung von Schadholz  (FP-D)"]
[]
["Abrechnungs-Nr. "]
[null,null,"m3","Fr./m3","Subvention (Fr.)",null,"Verteilung der Massnahmen  (m3)"]
[null,null,null,null,null,null,"Vom Borken-käfer befallener Baum",null,"Durch Wind oder Schnee geschädigter oder geworfener Baum",null,"Baum im Bett eines Wildbaches",null,"Baum in Lawinenzug",null,"Baum in aktiver Rutschung",null,"Sicherheits-schlag",null,"Ande-re"]
["Im Bestand gelassenes Holz ",null,{"$f":"SUM(G8:S8)","v":0},70,{"$f":"C8*D8","v":0}]
["Mechanisier-ter Schlag",null,{"$f":"SUM(G9:S9)","v":0},10,{"$f":"C9*D9","v":0}]
["Mit Traktor gerücktes Holz ",null,0,45,0]
["Mit Seilkran gerücktes Holz",null,0,80,0]
["Mit Helikopter gerücktes Holz",null,0,100,0]
["Total",null,{"$f":"SUM(C8:C12)","v":0},null,{"$f":"SUM(E8:F12)","v":0},null,{"$f":"SUM(G8:H12)","v":0},null,{"$f":"SUM(I8:J12)","v":0},null,{"$f":"SUM(K8:L12)","v":0},null,{"$f":"SUM(M8:N12)","v":0},null,{"$f":"SUM(O8:P12)","v":0},null,{"$f":"SUM(Q8:R12)","v":0},null,{"$f":"SUM(S8:S12)","v":0}]
[]
["KONFORMITÄTSERKLÄRUNG DER AUSGEFÜHRTEN ARBEITEN UND AUSZAHLUNGSANTRAG"]
["Die Unterzeichneten bestätigen, dass:"]
[]
[null,"die Arbeiten gemäss dem Vertrag und dem genehmigten Projekt erfolgt sind.                                       "]
[]
[null,"die Qualitätsanforderungen betreffend Umweltverträglichkeit bei der Ausführung der Arbeiten erfüllt sind."]
[]
["Die Trägerschaft kann im Falle von Kontrollen die Originalbelege jederzeit beibringen."]
[]
["Ort, Datum",null,null,null,null,null,null,null,null,null,"Die Trägerschaft"]
[]
[]
["AUSZAHLUNG DER SUBVENTION (vom WNA auszufüllen)"]
["Das WNA genehmigt die vorliegende Abrechnung und die Auszahlung der Subvention:"]
[]
[null,"Total der Subventionen",null,null,null,null,null,null,null,null,"Frs."]
[null,"./. Akonto ED vom:",null,null,null,null,null,null,null,null,"Frs."]
[null,"Zu zahlender Restbetrag:",null,null,null,null,null,null,null,null,"Frs."]
[null,"Bundesanteil:",null,null,null,null,null,null,null,null,"Frs."]
[]
[]
["BEMERKUNGEN"]

{"sheet":"Surveillance - Annexe","index":24,"n_rows":17,"n_cols":11,"rows_kept":17,"cut":false,"hidden":true,"merged":[[13,0,13,6],[13,7,13,10],[0,0,0,18],[5,6,5,18],[1,0,1,18],[2,0,2,18],[16,0,16,18],[15,0,15,18],[4,0,4,18],[7,0,7,5],[6,0,6,5],[5,0,5,5],[7,6,7,18],[10,0,10,18],[11,0,11,2],[11,3,11,6],[11,7,11,9],[6,6,6,18]]}
[]
["Anlage zum Gesuch"]
["Intensive Überwachung  (FP-D)"]
[]
["GEPLANTE INTENSIVE ÜBERWACHUNG DER WÄLDER"]
["Betroffenes Gebiet : "]
["Dauer : "]
["Ausführende Person : "]
[]
[]
["SCHÄTZUNG DER SUBVENTION"]
[null,null,null,"Stunden à 30 Fr/Stunde  =",null,null,null,{"$f":"IF(ISBLANK(A12), \"\", A12*30)","v":""},null,null,"Fr."]
[]
[" AUSFÜHRUNGSTERMIN DER ARBEITEN"]
[]
["KONTROLLE UND AUSZAHLUNG DER SUBVENTION"]
["Die Auszahlung der Subvention erfolgt nach der Ausführung und Kontrolle der Arbeiten. Die vom Amt für Wald und Natur bestimmten Personen sorgen für die Einhaltung der festgelegten Bedingungen. Der Subventionsbetrag wird mit der Abrechnung festgelegt und je nach verfügbaren Krediten bis Ende Jahr ausbezahlt."]

{"sheet":"Surveillance - Décompte","index":25,"n_rows":29,"n_cols":16,"rows_kept":29,"cut":false,"hidden":true,"merged":[[24,11,24,14],[25,11,25,14],[28,0,28,18],[29,0,29,18],[16,2,16,7],[16,13,16,18],[19,0,19,18],[22,11,22,14],[23,4,23,7],[23,11,23,14],[5,0,5,6],[5,7,5,10],[5,11,5,14],[5,15,5,18],[0,0,0,18],[4,7,4,10],[4,11,4,14],[4,15,4,18],[1,0,1,18],[2,0,2,18],[4,3,4,6],[4,0,4,2]]}
[]
["Abrechnung der Subvention"]
["Intensive Überwachung  (FP-D)"]
[]
["Abrechnungs-Nr. :",null,null,null,null,null,null,"Anzahl\nStunden",null,null,null,"Pauschale (Fr./Einheit)",null,null,null,"Subvention (Fr.)"]
["Intensive Überwachung",null,null,null,null,null,null,null,null,null,null,30,null,null,null,{"$f":"IF(ISBLANK(H6), \"\", H6*L6)","v":""}]
[]
["KONFORMITÄTSERKLÄRUNG DER AUSGEFÜHRTEN ARBEITEN UND AUSZAHLUNGSANTRAG"]
["Die Unterzeichneten bestätigen, dass:"]
[]
[null,"die Arbeiten gemäss dem Vertrag und dem genehmigten Projekt erfolgt sind.                                       "]
[]
[null,"die Qualitätsanforderungen betreffend Umweltverträglichkeit bei der Ausführung der Arbeiten erfüllt sind."]
[]
["Die Trägerschaft kann im Falle von Kontrollen die Originalbelege jederzeit beibringen."]
[]
["Ort, Datum",null,null,null,null,null,null,null,null,null,"Die Trägerschaft"]
[]
[]
["AUSZAHLUNG DER SUBVENTION (vom WNA auszufüllen)"]
["Das WNA genehmigt die vorliegende Abrechnung und die Auszahlung der Subvention:"]
[]
[null,"Total der Subventionen",null,null,null,null,null,null,null,null,"Frs."]
[null,"./. Akonto ED vom:",null,null,null,null,null,null,null,null,"Frs."]
[null,"Zu zahlender Restbetrag:",null,null,null,null,null,null,null,null,"Frs."]
[null,"Bundesanteil:",null,null,null,null,null,null,null,null,"Frs."]
[]
[]
["BEMERKUNGEN"]

{"sheet":"Pièges - Annexe","index":26,"n_rows":21,"n_cols":11,"rows_kept":21,"cut":false,"hidden":true,"merged":[[0,0,0,18],[1,0,1,18],[4,0,4,18],[7,0,7,4],[7,10,7,14],[19,0,19,18],[20,0,20,18],[2,0,2,18],[10,15,10,18],[11,15,11,18],[8,15,8,18],[9,15,9,18],[8,0,8,4],[9,0,9,4],[17,0,17,6],[17,7,17,10],[5,15,5,18],[14,0,14,18],[15,0,15,2],[15,7,15,9],[15,3,15,6],[7,15,7,18],[5,6,5,14],[10,0,10,4],[11,0,11,4],[8,10,8,14],[9,10,9,14],[10,10,10,14],[11,10,11,14],[7,5,7,8],[8,5,8,8],[9,5,9,8],[10,5,10,8],[11,5,11,8]]}
[]
["Anlage zum Gesuch"]
["Betrieb von Borkenkäferfallen (FP-D)"]
[]
["BORKENKÄFERFALLEN"]
[null,null,null,null,null,null,"Bei mehreren Koordinaten ist Gruppe ForestMap Nr :"]
[]
["Geografische Koordinaten : ",null,null,null,null,null,null,null,null,null,"Geografische Koordinaten : "]
["Geografische Koordinaten : ",null,null,null,null,null,null,null,null,null,"Geografische Koordinaten : "]
["Geografische Koordinaten : ",null,null,null,null,null,null,null,null,null,"Geografische Koordinaten : "]
["Geografische Koordinaten : ",null,null,null,null,null,null,null,null,null,"Geografische Koordinaten : "]
["Geografische Koordinaten : ",null,null,null,null,null,null,null,null,null,"Geografische Koordinaten : "]
[]
[]
["SCHÄTZUNG DER SUBVENTION"]
[null,null,null,"Fallen à 200 Fr./Falle =",null,null,null,{"$f":"IF(ISBLANK(A16), \"\", A16*200)","v":""},null,null,"Fr."]
[]
[" AUSFÜHRUNGSTERMIN DER ARBEITEN"]
[]
["KONTROLLE UND AUSZAHLUNG DER SUBVENTION"]
["Die Auszahlung der Subvention erfolgt nach der Ausführung und Kontrolle der Arbeiten. Die vom Amt für Wald und Natur bestimmten Personen sorgen für die Einhaltung der festgelegten Bedingungen. Der Subventionsbetrag wird mit der Abrechnung festgelegt und je nach verfügbaren Krediten bis Ende Jahr ausbezahlt."]

{"sheet":"Pièges - Décompte","index":27,"n_rows":29,"n_cols":16,"rows_kept":29,"cut":false,"hidden":true,"merged":[[25,11,25,14],[19,0,19,18],[22,11,22,14],[23,4,23,7],[23,11,23,14],[24,11,24,14],[0,0,0,18],[1,0,1,18],[2,0,2,18],[29,0,29,18],[4,15,4,18],[4,11,4,14],[5,7,5,10],[5,11,5,14],[5,15,5,18],[5,0,5,6],[28,0,28,18],[4,7,4,10],[4,3,4,6],[4,0,4,2],[16,2,16,7],[16,13,16,18]]}
[]
["Abrechnung der Subvention"]
["Betrieb von Borkenkäferfallen (FP-D)"]
[]
["Abrechnungs-Nr. :",null,null,null,null,null,null,"Anzahl",null,null,null,"Pauschale (Fr./Einheit)",null,null,null,"Subvention (Fr.)"]
["Betrieb von Borkenkäferfallen",null,null,null,null,null,null,{"$f":"IF(ISBLANK('Pièges - Annexe'!A16), \"\", 'Pièges - Annexe'!A16)","v":""},null,null,null,200,null,null,null,{"$f":"IFERROR(H6*L6, \"\")","v":""}]
[]
["KONFORMITÄTSERKLÄRUNG DER AUSGEFÜHRTEN ARBEITEN UND AUSZAHLUNGSANTRAG"]
["Die Unterzeichneten bestätigen, dass:"]
[]
[null,"die Arbeiten gemäss dem Vertrag und dem genehmigten Projekt erfolgt sind.                                       "]
[]
[null,"die Qualitätsanforderungen betreffend Umweltverträglichkeit bei der Ausführung der Arbeiten erfüllt sind."]
[]
["Die Trägerschaft kann im Falle von Kontrollen die Originalbelege jederzeit beibringen."]
[]
["Ort, Datum",null,null,null,null,null,null,null,null,null,"Die Trägerschaft"]
[]
[]
["AUSZAHLUNG DER SUBVENTION (vom WNA auszufüllen)"]
["Das WNA genehmigt die vorliegende Abrechnung und die Auszahlung der Subvention:"]
[]
[null,"Total der Subventionen",null,null,null,null,null,null,null,null,"Frs."]
[null,"./. Akonto ED vom:",null,null,null,null,null,null,null,null,"Frs."]
[null,"Zu zahlender Restbetrag:",null,null,null,null,null,null,null,null,"Frs."]
[null,"Bundesanteil:",null,null,null,null,null,null,null,null,"Frs."]
[]
[]
["BEMERKUNGEN"]